Workbook

Sheet Datos Asegurado
A2: Cotización | H2: Integrantes adicionales a cotizar
A4: 1. Ingrese los datos del asegurado | K4: Fecha de Nacimiento
H5: Número | I5: Relación | J5: Género | K5: Día | L5: Mes | M5: Año | N5: Edad
B6: Fecha Cotización: | C6: =TODAY() -> 2024-06-13
B7: Nombre del titular: | C7: JUAN VIAL
B8: Edad del titular: | C8: 18
B9: Género: | C9: Masculino
B11: Lugar de residencia: | C11: Sonora | D11: Zona: | E11: =VLOOKUP(C11,Master!B3:C35,2,FALSE) -> Zona 1
B13: Número de integrantes adicionales a cotizar: | C13: 0
A16: 2. Datos del agente
B18: Nombre del agente:
B19: Agencia:
A22: 3. Datos de la póliza
B24: Tipo de cliente: | C24: Nuevo negocio - con periodos de espera
B26: Zona: | C26: ='Datos Asegurado'!E11 -> Zona 1
B27: Suma asegurada (mxn): | C27: 5000000
D28: Maternidad
B29: Deducible (mxn): | C29: 9000 | D29: Titular: | E29: No
D30: Conyuge: | E30: No
B31: Coaseguro: | C31: 0 | E31: No
D32: Asistencia en el extranjero: | E32: Si
E33: No
A35: 4. Costo Poliza | H35: 5. Compara
A37: Concepto | C37: Anual | D37: Semestral | E37: Trimestral | F37: Mensual | I37: Guardar para comparar | K37: Limpiar
B38: Prima del asegurado titular: | C38: =MasterBase!C10 -> 14248 | D38: =(C38*(IF($E$33="Si",0%,4.5%))+C38) -> 14889.16 | E38: =(C38*(IF($E$33="Si",0%,7.5%))+C38) -> 15316.6 | F38: =(C38*(IF($E$33="Si",0%,9%))+C38) -> 15530.32
B39: Prima cónyuge: | C39: =MasterBase!C24 -> 0 | D39: =(C39*(IF($E$33="Si",0%,4.5%))+C39) -> 0 | E39: =(C39*(IF($E$33="Si",0%,7.5%))+C39) -> 0 | F39: =(C39*(IF($E$33="Si",0%,9%))+C39) -> 0
B40: Prima hijo(s): | C40: =MasterBase!G24 -> 0 | D40: =(C40*(IF($E$33="Si",0%,4.5%))+C40) -> 0 | E40: =(C40*(IF($E$33="Si",0%,7.5%))+C40) -> 0 | F40: =(C40*(IF($E$33="Si",0%,9%))+C40) -> 0
B41: Dependientes económicos | C41: =MasterBase!K24 -> 0 | D41: =(C41*(IF($E$33="Si",0%,4.5%))+C41) -> 0 | E41: =(C41*(IF($E$33="Si",0%,7.5%))+C41) -> 0 | F41: =(C41*(IF($E$33="Si",0%,9%))+C41) -> 0
B42: Asistencia en el extranjero: | C42: =IF($E$32="Si",1632,0) -> 1632 | D42: =(C42*(IF($E$33="Si",0%,4.5%))+C42) -> 1705.44 | E42: =(C42*(IF($E$33="Si",0%,7.5%))+C42) -> 1754.4 | F42: =(C42*(IF($E$33="Si",0%,9%))+C42) -> 1778.88
B43: 10% de descuento (Anual) | C43: =IF($E$31="Si",(-1)*C42*10%,0) -> 0 | D43: =(C43*(IF($E$33="Si",0%,4.5%))+C43) -> 0 | E43: =IF($E$31="Si",(-1)*C42*10%,0) -> 0 | F43: =IF($E$31="Si",(-1)*C42*10%,0) -> 0
B44: Total Prima: | C44: =SUM(C38:C42) -> 15880 | D44: =SUM(D38:D42) -> 16594.6 | E44: 17071 | F44: 17309.2
B45: Descuento asistencia en el extranjero | C45: =IF($E$32="Si",IF($C$24="transfer Bupa Internacional",0,0),0) -> 0 | D45: =IF($E$32="Si",IF($C$24="transfer Bupa Internacional",0,0),0) -> 0 | E45: =IF($E$32="Si",IF($C$24="transfer Bupa Internacional",0,0),0) -> 0 | F45: =IF($E$32="Si",IF($C$24="transfer Bupa Internacional",0,0),0) -> 0
B46: Derecho de póliza: | C46: =Master!U3 -> 1500 | D46: 1500 | E46: 1500 | F46: 1500
B47: IVA (16%) | C47: =(C44+C46) * 16% -> 2780.8 | D47: =(D44+D46) * 16% -> 2895.136 | E47: =(E44+E46) * 16% -> 2971.36 | F47: =(F44+F46) * 16% -> 3009.472
B48: Costo total: | C48: =C46+C47+C43+C44+C45 -> 20160.8 | D48: =D46+D47+D43+D44+D45 -> 20989.736 | E48: =E46+E47+E43+E44+E45 -> 21542.36 | F48: =F46+F47+F43+F44+F45 -> 21818.672
B49: Primer Pago: | C49: =C48 -> 20160.8 | D49: =(D44/2+D46)*1.16 -> 11364.868 | E49: =(E44/4+E46)*1.16 -> 6690.59 | F49: =(F44/12+F46)*1.16 -> 3413.222667
B50: Pagos Subsecuentes: | D50: =(D44/2)*1.16 -> 9624.868 | E50: =(E44/4)*1.16 -> 4950.59 | F50: =(F44/12)*1.16 -> 1673.222667

Sheet Instrucciones

Sheet Comparativo
B2: Datos de usuario
C4: Fecha Cotización: | D4: 2024-05-05
C5: Nombre del titular: | D5: JUAN VIAL
C6: Edad del titular: | D6: 18
C7: Género: | D7: Masculino
C9: Lugar de residencia: | D9: Sonora | E9: Zona: | F9: Zona 1
C11: Número de integrantes adicionales a cotizar: | D11: 0
B16: Datos de póliza | I16: Opción 1
J17: Datos de cotización
C18: Tipo de cliente: | D18: Nuevo negocio - con periodos de espera | J18: Concepto | L18: Anual | M18: Semestral | N18: Trimestral | O18: Mensual
K19: Prima del asegurado titular: | L19: 14248 | M19: 14889.16 | N19: 15316.6 | O19: 15530.32
C20: Zona: | D20: Zona 1 | K20: Prima cónyuge: | L20: 0 | M20: 0 | N20: 0 | O20: 0
C21: Suma asegurada (mxn): | D21: 5000000 | K21: Prima hijo(s): | L21: 0 | M21: 0 | N21: 0 | O21: 0
E22: Maternidad | K22: Dependientes económicos | L22: 0 | M22: 0 | N22: 0 | O22: 0
C23: Deducible (mxn): | D23: 9000 | E23: Titular: | F23: No | K23: Asistencia en el extranjero: | L23: 1632 | M23: 1705.44 | N23: 1754.4 | O23: 1778.88
E24: Conyuge: | F24: No | K24: 10% de descuento (Anual) | L24: 0 | M24: 0 | N24: 0 | O24: 0
C25: Coaseguro: | D25: 0 | F25: No | K25: Total Prima: | L25: 15880 | M25: 16594.6 | N25: 17071 | O25: 17309.2
E26: Asistencia en el extranjero: | F26: Si | K26: Descuento asistencia en el extranjero | L26: 0 | M26: 0 | N26: 0 | O26: 0
K27: Derecho de póliza: | L27: 1500 | M27: 1500 | N27: 1500 | O27: 1500
K28: IVA (16%) | L28: 2780.8 | M28: 2895.136 | N28: 2971.36 | O28: 3009.472
K29: Costo total: | L29: 20160.8 | M29: 20989.736 | N29: 21542.36 | O29: 21818.672
K30: Primer Pago: | L30: 20160.8 | M30: 11364.868 | N30: 6690.59 | O30: 3413.222667
K31: Pagos Subsecuentes: | M31: 9624.868 | N31: 4950.59 | O31: 1673.222667
B32: Datos de póliza
C34: Tipo de cliente: | D34: Transfer Bupa Internacional | J34: Concepto | L34: Anual | M34: Semestral | N34: Trimestral | O34: Mensual
K35: Prima del asegurado titular: | L35: 14248 | M35: 14889.16 | N35: 15316.6 | O35: 15530.32
C36: Zona: | D36: Zona 1 | K36: Prima cónyuge: | L36: 0 | M36: 0 | N36: 0 | O36: 0
C37: Suma asegurada (mxn): | D37: 5000000 | K37: Prima hijo(s): | L37: 0 | M37: 0 | N37: 0 | O37: 0
E38: Maternidad | K38: Dependientes económicos | L38: 0 | M38: 0 | N38: 0 | O38: 0
C39: Deducible (mxn): | D39: 9000 | E39: Titular: | F39: No | K39: Asistencia en el extranjero: | L39: 1632 | M39: 1705.44 | N39: 1754.4 | O39: 1778.88
E40: Conyuge: | F40: No | K40: 10% de descuento (Anual) | L40: 0 | M40: 0 | N40: 0 | O40: 0
C41: Coaseguro: | D41: 0 | F41: No | K41: Total Prima: | L41: 15880 | M41: 16594.6 | N41: 17071 | O41: 17309.2
E42: Asistencia en el extranjero: | F42: Si | K42: Descuento asistencia en el extranjero | L42: 0 | M42: 0 | N42: 0 | O42: 0
K43: Derecho de póliza: | L43: 1500 | M43: 1500 | N43: 1500 | O43: 1500
K44: IVA (16%) | L44: 2780.8 | M44: 2895.136 | N44: 2971.36 | O44: 3009.472
K45: Costo total: | L45: 20160.8 | M45: 20989.736 | N45: 21542.36 | O45: 21818.672
K46: Primer Pago: | L46: 20160.8 | M46: 11364.868 | N46: 6690.59 | O46: 3413.222667
K47: Pagos Subsecuentes: | M47: 9624.868 | N47: 4950.59 | O47: 1673.222667
B48: Datos de póliza
C50: Tipo de cliente: | D50: Transfer Bupa Internacional | J50: Concepto | L50: Anual | M50: Semestral | N50: Trimestral | O50: Mensual
K51: Prima del asegurado titular: | L51: 14248 | M51: 14889.16 | N51: 15316.6 | O51: 15530.32
C52: Zona: | D52: Zona 1 | K52: Prima cónyuge: | L52: 0 | M52: 0 | N52: 0 | O52: 0
C53: Suma asegurada (mxn): | D53: 5000000 | K53: Prima hijo(s): | L53: 0 | M53: 0 | N53: 0 | O53: 0
E54: Maternidad | K54: Dependientes económicos | L54: 0 | M54: 0 | N54: 0 | O54: 0
C55: Deducible (mxn): | D55: 9000 | E55: Titular: | F55: No | K55: Asistencia en el extranjero: | L55: 1632 | M55: 1705.44 | N55: 1754.4 | O55: 1778.88
E56: Conyuge: | F56: No | K56: 10% de descuento (Anual) | L56: 0 | M56: 0 | N56: 0 | O56: 0
C57: Coaseguro: | D57: 0 | F57: No | K57: Total Prima: | L57: 15880 | M57: 16594.6 | N57: 17071 | O57: 17309.2
E58: Asistencia en el extranjero: | F58: Si | K58: Descuento asistencia en el extranjero | L58: 0 | M58: 0 | N58: 0 | O58: 0
K59: Derecho de póliza: | L59: 1500 | M59: 1500 | N59: 1500 | O59: 1500
K60: IVA (16%) | L60: 2780.8 | M60: 2895.136 | N60: 2971.36 | O60: 3009.472
K61: Costo total: | L61: 20160.8 | M61: 20989.736 | N61: 21542.36 | O61: 21818.672
K62: Primer Pago: | L62: 20160.8 | M62: 11364.868 | N62: 6690.59 | O62: 3413.222667
K63: Pagos Subsecuentes: | M63: 9624.868 | N63: 4950.59 | O63: 1673.222667

Sheet Template PDF
B15: Cotización
B17: Datos Titular
B18: Nombre del titular: | C18: ='Datos Asegurado'!C7 -> JUAN VIAL | D18: Nombre Agente: | E18: ='Datos Asegurado'!C18 -> 0
B19: Edad: | C19: ='Datos Asegurado'!C8 -> 18 | D19: Agencia: | E19: ='Datos Asegurado'!C19 -> 0
B20: Género: | C20: ='Datos Asegurado'!C9 -> Masculino | D20: ='Datos Asegurado'!B6 -> Fecha Cotización: | E20: ='Datos Asegurado'!C6 -> 2024-06-13
B21: Lugar de residencia: | C21: ='Datos Asegurado'!C11 -> Sonora
B22: Número de integrantes cotizados: | C22: ='Datos Asegurado'!C13+1 -> 1
B24: Características de la Póliza
B25: Suma asegurada (mxn): | C25: ='Datos Asegurado'!C27 -> 5000000
B26: Deducible (mxn): | C26: ='Datos Asegurado'!C29 -> 9000
B27: Coaseguro | C27: ='Datos Asegurado'!C31 -> 0
B28: Tipo de cliente: | C28: ='Datos Asegurado'!C24:D24 -> Nuevo negocio - con periodos de espera
B29: ='Datos Asegurado'!D28 -> Maternidad | C29: ='Datos Asegurado'!D29 -> Titular: | D29: ='Datos Asegurado'!E29 -> No
C30: ='Datos Asegurado'!D30 -> Conyuge: | D30: ='Datos Asegurado'!E30 -> No
B32: Costo Poliza
B33: Concepto | C33: Anual | D33: Semestral | E33: Trimestral | F33: Mensual
B34: ='Datos Asegurado'!B38 -> Prima del asegurado titular: | C34: ='Datos Asegurado'!C38 -> 14248 | D34: ='Datos Asegurado'!D38 -> 14889.16 | E34: ='Datos Asegurado'!E38 -> 15316.6 | F34: ='Datos Asegurado'!F38 -> 15530.32
B35: ='Datos Asegurado'!B39 -> Prima cónyuge: | C35: ='Datos Asegurado'!C39 -> 0 | D35: ='Datos Asegurado'!D39 -> 0 | E35: ='Datos Asegurado'!E39 -> 0 | F35: ='Datos Asegurado'!F39 -> 0
B36: ='Datos Asegurado'!B40 -> Prima hijo(s): | C36: ='Datos Asegurado'!C40 -> 0 | D36: ='Datos Asegurado'!D40 -> 0 | E36: ='Datos Asegurado'!E40 -> 0 | F36: ='Datos Asegurado'!F40 -> 0
B37: ='Datos Asegurado'!B41 -> Dependientes económicos | C37: ='Datos Asegurado'!C41 -> 0 | D37: ='Datos Asegurado'!D41 -> 0 | E37: ='Datos Asegurado'!E41 -> 0 | F37: ='Datos Asegurado'!F41 -> 0
B38: ='Datos Asegurado'!B42 -> Asistencia en el extranjero: | C38: ='Datos Asegurado'!C42 -> 1632 | D38: ='Datos Asegurado'!D42 -> 1705.44 | E38: ='Datos Asegurado'!E42 -> 1754.4 | F38: ='Datos Asegurado'!F42 -> 1778.88
B39: ='Datos Asegurado'!B43 -> 10% de descuento (Anual) | C39: ='Datos Asegurado'!C43 -> 0 | D39: ='Datos Asegurado'!D43 -> 0 | E39: ='Datos Asegurado'!E43 -> 0 | F39: ='Datos Asegurado'!F43 -> 0
B40: ='Datos Asegurado'!B44 -> Total Prima: | C40: ='Datos Asegurado'!C44 -> 15880 | D40: ='Datos Asegurado'!D44 -> 16594.6 | E40: ='Datos Asegurado'!E44 -> 17071 | F40: ='Datos Asegurado'!F44 -> 17309.2
B41: ='Datos Asegurado'!B45 -> Descuento asistencia en el extranjero | C41: ='Datos Asegurado'!C45 -> 0 | D41: ='Datos Asegurado'!D45 -> 0 | E41: ='Datos Asegurado'!E45 -> 0 | F41: ='Datos Asegurado'!F45 -> 0
B42: ='Datos Asegurado'!B46 -> Derecho de póliza: | C42: ='Datos Asegurado'!C46 -> 1500 | D42: ='Datos Asegurado'!D46 -> 1500 | E42: ='Datos Asegurado'!E46 -> 1500 | F42: ='Datos Asegurado'!F46 -> 1500
B43: ='Datos Asegurado'!B47 -> IVA (16%) | C43: ='Datos Asegurado'!C47 -> 2780.8 | D43: ='Datos Asegurado'!D47 -> 2895.136 | E43: ='Datos Asegurado'!E47 -> 2971.36 | F43: ='Datos Asegurado'!F47 -> 3009.472
B44: ='Datos Asegurado'!B48 -> Costo total: | C44: ='Datos Asegurado'!C48 -> 20160.8 | D44: ='Datos Asegurado'!D48 -> 20989.736 | E44: ='Datos Asegurado'!E48 -> 21542.36 | F44: ='Datos Asegurado'!F48 -> 21818.672
B45: ='Datos Asegurado'!B49 -> Primer Pago: | C45: ='Datos Asegurado'!C49 -> 20160.8 | D45: ='Datos Asegurado'!D49 -> 11364.868 | E45: ='Datos Asegurado'!E49 -> 6690.59 | F45: ='Datos Asegurado'!F49 -> 3413.222667
B46: ='Datos Asegurado'!B50 -> Pagos Subsecuentes: | C46: ='Datos Asegurado'!C50 -> 0 | D46: ='Datos Asegurado'!D50 -> 9624.868 | E46: ='Datos Asegurado'!E50 -> 4950.59 | F46: ='Datos Asegurado'!F50 -> 1673.222667
B51: Tarifas válidas al 30 de junio 2024
B53: Asistencia en el extranjero sin costo por el primer año de vigencia de la póliza.
B54: 6 meses sin intereses sin cargo al agente para modalidad de pago anual durante el primer año póliza con tarjetas de crédito participantes: Afirme, Azteca, Bajío, Banjercito, Banorte, Banregio, BBVA, Citibanamex, Famsa, HSBC, Inbursa, Invex, IXE, Liverpool, Mifel, Multiva, Santander, Scotiabank, Sociedad de Facilidades Multirotativas y American Express. Promoción válida sólo para tarjetas emitidas en la República Mexicana.
B55: Las pólizas contratadas cuentan con limitaciones y exclusiones las cuáles pueden ser consultadas en www.bupasalud.com.mx . Para más información, llámanos al 55 5202-1701 ext 4 o envíanos un correo a: ventasdirectas@bupa.com.mx
B56: La presente cotización es de carácter informativo, no constituye una solicitud de seguro y/o el monto de la prima definitiva y/o las condiciones de la misma y/o una oferta de aseguramiento en términos del artículo 5to de la Ley Sobre el Contrato de Seguro. La emisión de la póliza así como posibles cambios en la tarifa están sujetos a valoración del riesgo de acuerdo con las políticas de Suscripción de Bupa México y es susceptible de modificaciones, por lo que Bupa podrá aceptar o negar el aseguramiento del riesgo propuesto.

Sheet Template PDF Comparativo
B15: Comparativo Cotizaciones
B17: Nombre del titular | C17: =Comparativo!D5 -> JUAN VIAL | D17: ='Datos Asegurado'!B18 -> Nombre del agente: | E17: =IF('Datos Asegurado'!C18=0,"",'Datos Asegurado'!C18) -> 
B18: Edad | C18: ='Datos Asegurado'!C8 -> 18 | D18: ='Datos Asegurado'!B19 -> Agencia: | E18: =IF('Datos Asegurado'!C19=0,"",'Datos Asegurado'!C19) -> 
B19: Género | C19: ='Datos Asegurado'!C9 -> Masculino | D19: ='Datos Asegurado'!B6 -> Fecha Cotización: | E19: ='Datos Asegurado'!C6 -> 2024-06-13
B20: Lugar de residencia | C20: ='Datos Asegurado'!C11 -> Sonora
B21: Número de integrantes cotizados: | C21: ='Datos Asegurado'!C13+1 -> 1
B23: Opción 1
B24: Suma asegurada (mxn) | C24: =Comparativo!D21 -> 5000000 | D24: Coaseguro | E24: =Comparativo!D25 -> 0
B25: Deducible (mxn) | C25: =Comparativo!D23 -> 9000 | D25: Tipo de cliente | E25: =Comparativo!D18 -> Nuevo negocio - con periodos de espera
B26: =Comparativo!E22 -> Maternidad | C26: =CONCATENATE(Comparativo!E23," ",Comparativo!F23) -> Titular: No | E26: =CONCATENATE(Comparativo!E24," ",Comparativo!F24) -> Conyuge: No
B28: Concepto | C28: Anual | D28: Semestral | E28: Trimestral | F28: Mensual
B29: =Comparativo!K19 -> Prima del asegurado titular: | C29: =Comparativo!L19 -> 14248 | D29: =Comparativo!M19 -> 14889.16 | E29: =Comparativo!N19 -> 15316.6 | F29: =Comparativo!O19 -> 15530.32
B30: =Comparativo!K20 -> Prima cónyuge: | C30: =Comparativo!L20 -> 0 | D30: =Comparativo!M20 -> 0 | E30: =Comparativo!N20 -> 0 | F30: =Comparativo!O20 -> 0
B31: =Comparativo!K21 -> Prima hijo(s): | C31: =Comparativo!L21 -> 0 | D31: =Comparativo!M21 -> 0 | E31: =Comparativo!N21 -> 0 | F31: =Comparativo!O21 -> 0
B32: =Comparativo!K22 -> Dependientes económicos | C32: =Comparativo!L22 -> 0 | D32: =Comparativo!M22 -> 0 | E32: =Comparativo!N22 -> 0 | F32: =Comparativo!O22 -> 0
B33: =Comparativo!K23 -> Asistencia en el extranjero: | C33: =Comparativo!L23 -> 1632 | D33: =Comparativo!M23 -> 1705.44 | E33: =Comparativo!N23 -> 1754.4 | F33: =Comparativo!O23 -> 1778.88
B34: =Comparativo!K24 -> 10% de descuento (Anual) | C34: =Comparativo!L24 -> 0 | D34: =Comparativo!M24 -> 0 | E34: =Comparativo!N24 -> 0 | F34: =Comparativo!O24 -> 0
B35: =Comparativo!K25 -> Total Prima: | C35: =Comparativo!L25 -> 15880 | D35: =Comparativo!M25 -> 16594.6 | E35: =Comparativo!N25 -> 17071 | F35: =Comparativo!O25 -> 17309.2
B36: =Comparativo!K26 -> Descuento asistencia en el extranjero | C36: =Comparativo!L26 -> 0 | D36: =Comparativo!M26 -> 0 | E36: =Comparativo!N26 -> 0 | F36: =Comparativo!O26 -> 0
B37: =Comparativo!K27 -> Derecho de póliza: | C37: =Comparativo!L27 -> 1500 | D37: =Comparativo!M27 -> 1500 | E37: =Comparativo!N27 -> 1500 | F37: =Comparativo!O27 -> 1500
B38: =Comparativo!K28 -> IVA (16%) | C38: =Comparativo!L28 -> 2780.8 | D38: =Comparativo!M28 -> 2895.136 | E38: =Comparativo!N28 -> 2971.36 | F38: =Comparativo!O28 -> 3009.472
B39: =Comparativo!K29 -> Costo total: | C39: =Comparativo!L29 -> 20160.8 | D39: =Comparativo!M29 -> 20989.736 | E39: =Comparativo!N29 -> 21542.36 | F39: =Comparativo!O29 -> 21818.672
B40: =Comparativo!K30 -> Primer Pago: | C40: =Comparativo!L30 -> 20160.8 | D40: =Comparativo!M30 -> 11364.868 | E40: =Comparativo!N30 -> 6690.59 | F40: =Comparativo!O30 -> 3413.222667
B41: =Comparativo!K31 -> Pagos Subsecuentes: | C41: =Comparativo!L31 -> 0 | D41: =Comparativo!M31 -> 9624.868 | E41: =Comparativo!N31 -> 4950.59 | F41: =Comparativo!O31 -> 1673.222667
B43: Opción 2
B44: Suma asegurada (mxn) | C44: =Comparativo!D37 -> 5000000 | D44: Coaseguro | E44: =Comparativo!D41 -> 0
B45: Deducible (mxn) | C45: =Comparativo!D39 -> 9000 | D45: Tipo de cliente | E45: =Comparativo!D34 -> Transfer Bupa Internacional
B46: =Comparativo!E38 -> Maternidad | C46: =CONCATENATE(Comparativo!E39," ",Comparativo!F39) -> Titular: No | E46: =CONCATENATE(Comparativo!E40," ",Comparativo!F40) -> Conyuge: No
B48: Concepto | C48: Anual | D48: Semestral | E48: Trimestral | F48: Mensual
B49: =Comparativo!K35 -> Prima del asegurado titular: | C49: =Comparativo!L35 -> 14248 | D49: =Comparativo!M35 -> 14889.16 | E49: =Comparativo!N35 -> 15316.6 | F49: =Comparativo!O35 -> 15530.32
B50: =Comparativo!K36 -> Prima cónyuge: | C50: =Comparativo!L36 -> 0 | D50: =Comparativo!M36 -> 0 | E50: =Comparativo!N36 -> 0 | F50: =Comparativo!O36 -> 0
B51: =Comparativo!K37 -> Prima hijo(s): | C51: =Comparativo!L37 -> 0 | D51: =Comparativo!M37 -> 0 | E51: =Comparativo!N37 -> 0 | F51: =Comparativo!O37 -> 0
B52: =Comparativo!K38 -> Dependientes económicos | C52: =Comparativo!L38 -> 0 | D52: =Comparativo!M38 -> 0 | E52: =Comparativo!N38 -> 0 | F52: =Comparativo!O38 -> 0
B53: =Comparativo!K39 -> Asistencia en el extranjero: | C53: =Comparativo!L39 -> 1632 | D53: =Comparativo!M39 -> 1705.44 | E53: =Comparativo!N39 -> 1754.4 | F53: =Comparativo!O39 -> 1778.88
B54: =Comparativo!K40 -> 10% de descuento (Anual) | C54: =Comparativo!L40 -> 0 | D54: =Comparativo!M40 -> 0 | E54: =Comparativo!N40 -> 0 | F54: =Comparativo!O40 -> 0
B55: =Comparativo!K41 -> Total Prima: | C55: =Comparativo!L41 -> 15880 | D55: =Comparativo!M41 -> 16594.6 | E55: =Comparativo!N41 -> 17071 | F55: =Comparativo!O41 -> 17309.2
B56: =Comparativo!K42 -> Descuento asistencia en el extranjero | C56: =Comparativo!L42 -> 0 | D56: =Comparativo!M42 -> 0 | E56: =Comparativo!N42 -> 0 | F56: =Comparativo!O42 -> 0
B57: =Comparativo!K43 -> Derecho de póliza: | C57: =Comparativo!L43 -> 1500 | D57: =Comparativo!M43 -> 1500 | E57: =Comparativo!N43 -> 1500 | F57: =Comparativo!O43 -> 1500
B58: =Comparativo!K44 -> IVA (16%) | C58: =Comparativo!L44 -> 2780.8 | D58: =Comparativo!M44 -> 2895.136 | E58: =Comparativo!N44 -> 2971.36 | F58: =Comparativo!O44 -> 3009.472
B59: =Comparativo!K45 -> Costo total: | C59: =Comparativo!L45 -> 20160.8 | D59: =Comparativo!M45 -> 20989.736 | E59: =Comparativo!N45 -> 21542.36 | F59: =Comparativo!O45 -> 21818.672
B60: =Comparativo!K46 -> Primer Pago: | C60: =Comparativo!L46 -> 20160.8 | D60: =Comparativo!M46 -> 11364.868 | E60: =Comparativo!N46 -> 6690.59 | F60: =Comparativo!O46 -> 3413.222667
B61: =Comparativo!K47 -> Pagos Subsecuentes: | C61: =Comparativo!L47 -> 0 | D61: =Comparativo!M47 -> 9624.868 | E61: =Comparativo!N47 -> 4950.59 | F61: =Comparativo!O47 -> 1673.222667
B63: Opción 3
B64: Suma asegurada (mxn) | C64: =Comparativo!D53 -> 5000000 | D64: Coaseguro | E64: =Comparativo!D57 -> 0
B65: Deducible (mxn) | C65: =Comparativo!D55 -> 9000 | D65: Tipo de cliente | E65: =Comparativo!D50 -> Transfer Bupa Internacional
B66: =Comparativo!E54 -> Maternidad | C66: =CONCATENATE(Comparativo!E55," ",Comparativo!F55) -> Titular: No | E66: =CONCATENATE(Comparativo!E56," ",Comparativo!F56) -> Conyuge: No
B68: Concepto | C68: Anual | D68: Semestral | E68: Trimestral | F68: Mensual
B69: =Comparativo!K51 -> Prima del asegurado titular: | C69: =Comparativo!L51 -> 14248 | D69: =Comparativo!M51 -> 14889.16 | E69: =Comparativo!N51 -> 15316.6 | F69: =Comparativo!O51 -> 15530.32
B70: =Comparativo!K52 -> Prima cónyuge: | C70: =Comparativo!L52 -> 0 | D70: =Comparativo!M52 -> 0 | E70: =Comparativo!N52 -> 0 | F70: =Comparativo!O52 -> 0
B71: =Comparativo!K53 -> Prima hijo(s): | C71: =Comparativo!L53 -> 0 | D71: =Comparativo!M53 -> 0 | E71: =Comparativo!N53 -> 0 | F71: =Comparativo!O53 -> 0
B72: =Comparativo!K54 -> Dependientes económicos | C72: =Comparativo!L54 -> 0 | D72: =Comparativo!M54 -> 0 | E72: =Comparativo!N54 -> 0 | F72: =Comparativo!O54 -> 0
B73: =Comparativo!K55 -> Asistencia en el extranjero: | C73: =Comparativo!L55 -> 1632 | D73: =Comparativo!M55 -> 1705.44 | E73: =Comparativo!N55 -> 1754.4 | F73: =Comparativo!O55 -> 1778.88
B74: =Comparativo!K56 -> 10% de descuento (Anual) | C74: =Comparativo!L56 -> 0 | D74: =Comparativo!M56 -> 0 | E74: =Comparativo!N56 -> 0 | F74: =Comparativo!O56 -> 0
B75: =Comparativo!K57 -> Total Prima: | C75: =Comparativo!L57 -> 15880 | D75: =Comparativo!M57 -> 16594.6 | E75: =Comparativo!N57 -> 17071 | F75: =Comparativo!O57 -> 17309.2
B76: =Comparativo!K58 -> Descuento asistencia en el extranjero | C76: =Comparativo!L58 -> 0 | D76: =Comparativo!M58 -> 0 | E76: =Comparativo!N58 -> 0 | F76: =Comparativo!O58 -> 0
B77: =Comparativo!K59 -> Derecho de póliza: | C77: =Comparativo!L59 -> 1500 | D77: =Comparativo!M59 -> 1500 | E77: =Comparativo!N59 -> 1500 | F77: =Comparativo!O59 -> 1500
B78: =Comparativo!K60 -> IVA (16%) | C78: =Comparativo!L60 -> 2780.8 | D78: =Comparativo!M60 -> 2895.136 | E78: =Comparativo!N60 -> 2971.36 | F78: =Comparativo!O60 -> 3009.472
B79: =Comparativo!K61 -> Costo total: | C79: =Comparativo!L61 -> 20160.8 | D79: =Comparativo!M61 -> 20989.736 | E79: =Comparativo!N61 -> 21542.36 | F79: =Comparativo!O61 -> 21818.672
B80: =Comparativo!K62 -> Primer Pago: | C80: =Comparativo!L62 -> 20160.8 | D80: =Comparativo!M62 -> 11364.868 | E80: =Comparativo!N62 -> 6690.59 | F80: =Comparativo!O62 -> 3413.222667
B81: =Comparativo!K63 -> Pagos Subsecuentes: | C81: =Comparativo!L63 -> 0 | D81: =Comparativo!M63 -> 9624.868 | E81: =Comparativo!N63 -> 4950.59 | F81: =Comparativo!O63 -> 1673.222667
B83: Tarifas expresadas en $MXN – Tarifas validas al 30 de junio del 2024
B84: Este presupuesto solamente tiene carácter informativo y en ningún momento expresa compromiso legal para suministrarle cobertura de seguro. La emisión de una pólizade seguro Bupa esta sujeta a todas las evaluaciones de riesgo por parte de Bupa y a la recepción de todos los pagos de prima requeridos.
B86: Si tu residencia es zona 2, pero quieres tener acceso a zona 1; puedes también contratarlo. De acuerdo a lo señalado en condiciones generales de tu producto.

Sheet Brochure

Sheet Versión
A2: V.1
A3: Actualización: | B3: 19 de Marzo 2024 actualización brochure

Sheet Objetos Estructura (hidden)
A1: Estructuras Maestras
A3: Estructura asegurado
B4: Seleccione una opción | C4: Masculino | D4: 10 | E4: 06 | F4: 2023

Sheet Master (hidden)
A1: Datos Maestros | R1: Prima Base | AC1: Prima Riesgo Nuevo NN Eliminacion periodos de espera | AE1: Prima Tarifa Nuevo Producto NN Eliminacion periodos de espera | AG1: Prima Tarifa Nuevo Producto Ren Eliminacion periodos de espera | AI1: Tarifa Base, elimación | AJ1: Aceptación Periodos de Espera | AK1: Bupa Internacional | AM1: Aplica descuento nuevo negocio | AN1: Asistencia en el extranjero | AO1: Aplica descuento por pago fraccionado
A2: Genero | B2: Lugares de residencia | C2: Zona | D2: FD Zona | E2: Parentezco | F2: Dias | G2: Meses | H2: Años | I2: Tipo Cliente | J2: Factor descuento | K2: Sumas aseguradas | L2: FD Suma asegurada | M2: Deducibles | N2: Maternidad Aplica | O2: FD Deducible | P2: Coasegurado | Q2: FD Coasegurado | R2: Edad | S2: 40000 | T2: Factor es mujer | U2: Administración | V2: Factor descuento | X2: Recargos | Y2: NN | Z2: Renovacion | AA2: Transfer | AB2: Seguro dental | AC2: Edad | AD2: Valor | AE2: Edad | AF2: Valor | AG2: Edad | AH2: Valor | AI2: Valor | AJ2: Valor | AK2: Valor | AM2: Si | AN2: Si | AO2: Si
A3: Masculino | B3: Aguascalientes | C3: Zona 2 | D3: 0.8 | E3: Seleccione una opción | F3: 01 | G3: 01 | H3: 1947 | I3: Nuevo negocio - con periodos de espera | J3: 0.89 | K3: 5000000 | L3: 0.87262 | M3: 9000 | N3: Si | O3: 1.1146 | P3: 0 | Q3: 1 | R3: 0 | S3: 16257.969 | T3: 2600 | U3: 1500 | V3: Tipo cliente | W3: =VLOOKUP('Datos Asegurado'!C24,Master!I3:J5,2,FALSE) -> 0.89 | X3: Administracion | Y3: 0.15 | Z3: 0.15 | AA3: 0.15 | AB3: 400 | AC3: =R3 -> 0 | AD3: =S3*$W$14+$AB$3 -> 11161.10441 | AE3: =AC3 -> 0 | AF3: =AD3/(1-SUM($Y$3:$Y$5)) -> 18296.89247 | AG3: =AE3 -> 0 | AH3: =AD3/(1-SUM($Z$3:$Z$5)) -> 17439.22564 | AI3: =AF3 -> 18296.89247 | AJ3: =AI3*90% -> 16467.20323 | AK3: =AI3 -> 18296.89247 | AM3: No | AN3: No | AO3: No
A4: Femenino | B4: Baja California Norte | C4: Zona 1 | D4: 1 | E4: Conyuge | F4: 02 | G4: 02 | H4: 1948 | I4: Nuevo negocio - reconocimiento de antigüedad | J4: 0.95 | K4: 10000000 | L4: 0.91165 | M4: 17000 | N4: Si | O4: 1.07892 | P4: 0.1 | Q4: 0.94257 | R4: 1 | S4: 14413.02784 | V4: Zona | W4: =VLOOKUP('Datos Asegurado'!C11,Master!B3:D35,3,FALSE) -> 1 | X4: Adquisicion | Y4: 0.2 | Z4: 0.17 | AA4: 0.09 | AC4: 1 | AD4: =S4*$W$14+$AB$3 -> 9939.942993 | AE4: =AC4 -> 1 | AF4: =AD4/(1-SUM($Y$3:$Y$5)) -> 16294.98851 | AG4: =AE4 -> 1 | AH4: =AD4/(1-SUM($Z$3:$Z$5)) -> 15531.16093 | AI4: =AF4 -> 16294.98851 | AJ4: =AI4*90% -> 14665.48966 | AK4: =AI4 -> 16294.98851
B5: Baja California Sur | C5: Zona 1 | D5: 1 | E5: Hij@ | F5: 03 | G5: 03 | H5: 1949 | I5: Transfer Bupa Internacional | J5: 1 | K5: 20000000 | L5: 0.95067 | M5: 35000 | N5: Si | O5: 1.01542 | P5: 0.2 | Q5: 0.91091 | R5: 2 | S5: 12422.51997 | V5: Suma asegurada | W5: =VLOOKUP('Datos Asegurado'!C27,Master!K3:L6,2,FALSE) -> 0.87262 | X5: Utilidad | Y5: 0.04 | Z5: 0.04 | AA5: 0.04 | AC5: 2 | AD5: 8622.431375 | AE5: 2 | AF5: 14135.1334 | AG5: 2 | AH5: 13472.54902 | AI5: 14135.1334 | AJ5: 12721.62006 | AK5: 14135.1334
B6: Campeche | C6: Zona 2 | D6: 0.8 | E6: Dependiente economico | F6: 04 | G6: 04 | H6: 1950 | K6: 50000000 | L6: 1 | M6: 55000 | N6: No | O6: 0.95747 | R6: 3 | S6: 11563.46358 | V6: Deducible | W6: =VLOOKUP('Datos Asegurado'!C29,Master!M3:O11,3,FALSE) -> 1.1146 | X6: Total | Y6: =SUM(Y3:Y5) -> 0.39 | Z6: =SUM(Z3:Z5) -> 0.36 | AA6: =SUM(AA3:AA5) -> 0.28 | AC6: 3 | AD6: 8053.824346 | AE6: 3 | AF6: 13202.99073 | AG6: 3 | AH6: 12584.10054 | AI6: 13202.99073 | AJ6: 11882.69166 | AK6: 13202.99073
B7: Coahuila | C7: Zona 2 | D7: 0.8 | F7: 05 | G7: 05 | H7: 1951 | M7: 75000 | N7: No | O7: 0.82317 | R7: 4 | S7: 10630.92706 | V7: Coasegurado | W7: =VLOOKUP('Datos Asegurado'!C31,Master!P3:Q7,2,FALSE) -> 1 | X7: 1-Total | Y7: =1-Y6 -> 0.61 | Z7: =1-Z6 -> 0.64 | AA7: =1-AA6 -> 0.72 | AC7: 4 | AD7: 7436.581021 | AE7: 4 | AF7: 12191.11643 | AG7: 4 | AH7: 11619.65784 | AI7: 12191.11643 | AJ7: 10972.00478 | AK7: 12191.11643
B8: Colima | C8: Zona 2 | D8: 0.8 | F8: 06 | G8: 06 | H8: 1952 | M8: 115000 | R8: 5 | S8: 10995.29441 | V8: Cobertura Extranjero: (no) | W8: 0.85493 | AC8: 5 | AD8: 7677.754754 | AE8: 5 | AF8: 12586.4832 | AG8: 5 | AH8: 11996.4918 | AI8: 12586.4832 | AJ8: 11327.83488 | AK8: 12586.4832
B9: Chiapas | C9: Zona 2 | D9: 0.8 | F9: 07 | G9: 07 | H9: 1953 | R9: 6 | S9: 11372.15019 | V9: Reducción Honorarios: (Reducido) | W9: 0.9 | AC9: 6 | AD9: 7927.194543 | AE9: 6 | AF9: 12995.40089 | AG9: 6 | AH9: 12386.24147 | AI9: 12995.40089 | AJ9: 11695.8608 | AK9: 12995.40089
B10: Chihuahua | C10: Zona 2 | D10: 0.8 | F10: 08 | G10: 08 | H10: 1954 | R10: 7 | S10: 11761.92243 | V10: Copago Medicamentos: (0) | W10: 1 | AC10: 7 | AD10: 8185.183701 | AE10: 7 | AF10: 13418.33394 | AG10: 7 | AH10: 12789.34953 | AI10: 13418.33394 | AJ10: 12076.50054 | AK10: 13418.33394
B11: Ciudad de Mexico y área metropolitana | C11: Zona 1 | D11: 1 | F11: 09 | G11: 09 | H11: 1955 | R11: 8 | S11: 12165.05382 | V11: Reduccion a Consultas: (25) | W11: 0.98 | AC11: 8 | AD11: 8452.01525 | AE11: 8 | AF11: 13855.76271 | AG11: 8 | AH11: 13206.27383 | AI11: 13855.76271 | AJ11: 12470.18643 | AK11: 13855.76271
B12: Estado de Mexico | C12: Zona 2 | D12: 0.8 | F12: 10 | G12: 10 | H12: 1956 | R12: 9 | S12: 12582.00226 | V12: Re. Renuncia utilidad: (Si) | W12: 0.95 | AC12: 9 | AD12: 8727.992259 | AE12: 9 | AF12: 14308.18403 | AG12: 9 | AH12: 13637.4879 | AI12: 14308.18403 | AJ12: 12877.36563 | AK12: 14308.18403
B13: Durango | C13: Zona 2 | D13: 0.8 | F13: 11 | G13: 11 | H13: 1957 | R13: 10 | S13: 13013.2413 | V13: Re. Adicional Actuarial: (Si) | W13: 0.95 | AC13: 10 | AD13: 9013.42818 | AE13: 10 | AF13: 14776.11177 | AG13: 10 | AH13: 14083.48153 | AI13: 14776.11177 | AJ13: 13298.50059 | AK13: 14776.11177
B14: Guanajuato | C14: Zona 2 | D14: 0.8 | F14: 12 | G14: 12 | H14: 1958 | R14: 11 | S14: 13459.26075 | V14: Factor descuento sin tipo cliente | W14: =W5*W6*W7*W8*W9*W10*W11*W12*W13*W4 -> 0.6618972154 | AC14: 11 | AD14: 9308.647211 | AE14: 11 | AF14: 15260.07739 | AG14: 11 | AH14: 14544.76127 | AI14: 15260.07739 | AJ14: 13734.06966 | AK14: 15260.07739
B15: Guerrero | C15: Zona 2 | D15: 0.8 | F15: 13 | H15: 1959 | R15: 12 | S15: 13920.56719 | V15: Factor descuento con tipo cliente | W15: =W3*W4*W5*W6*W7*W8*W9*W10*W11*W12*W13 -> 0.5890885217 | AC15: 12 | AD15: 9613.984661 | AE15: 12 | AF15: 15760.63059 | AG15: 12 | AH15: 15021.85103 | AI15: 15760.63059 | AJ15: 14184.56753 | AK15: 15760.63059
B16: Hidalgo | C16: Zona 2 | D16: 0.8 | F16: 14 | H16: 1960 | R16: 13 | S16: 14397.68458 | AC16: 13 | AD16: 9929.787332 | AE16: 13 | AF16: 16278.33989 | AG16: 13 | AH16: 15515.29271 | AI16: 16278.33989 | AJ16: 14650.5059 | AK16: 16278.33989
B17: Jalisco | C17: Zona 1 | D17: 1 | F17: 15 | H17: 1961 | R17: 14 | S17: 14891.15482 | AC17: 14 | AD17: 10256.41391 | AE17: 14 | AF17: 16813.7933 | AG17: 14 | AH17: 16025.64674 | AI17: 16813.7933 | AJ17: 15132.41397 | AK17: 16813.7933
B18: Michoacán | C18: Zona 2 | D18: 0.8 | F18: 16 | H18: 1962 | R18: 15 | S18: 15401.5384 | AC18: 15 | AD18: 10594.23538 | AE18: 15 | AF18: 17367.59898 | AG18: 15 | AH18: 16553.49278 | AI18: 17367.59898 | AJ18: 15630.83909 | AK18: 17367.59898
B19: Morelos | C19: Zona 2 | D19: 0.8 | F19: 17 | H19: 1963 | R19: 16 | S19: 15929.41501 | AC19: 16 | AD19: 10943.63544 | AE19: 16 | AF19: 17940.38596 | AG19: 16 | AH19: 17099.43037 | AI19: 17940.38596 | AJ19: 16146.34737 | AK19: 17940.38596
B20: Nayarit | C20: Zona 2 | D20: 0.8 | F20: 18 | H20: 1964 | R20: 17 | S20: 16475.38421 | AC20: 17 | AD20: 11305.01093 | AE20: 17 | AF20: 18532.8048 | AG20: 17 | AH20: 17664.07957 | AI20: 18532.8048 | AJ20: 16679.52432 | AK20: 18532.8048
B21: Nuevo León | C21: Zona 1 | D21: 1 | F21: 19 | H21: 1965 | R21: 18 | S21: 16973.02601 | AC21: 18 | AD21: 11634.39865 | AE21: 18 | AF21: 19072.78468 | AG21: 18 | AH21: 18178.7479 | AI21: 19072.78468 | AJ21: 17165.50621 | AK21: 19072.78468
B22: Oaxaca | C22: Zona 2 | D22: 0.8 | F22: 20 | H22: 1966 | R22: 19 | S22: 17712.20798 | AC22: 19 | AD22: 12123.66114 | AE22: 19 | AF22: 19874.85433 | AG22: 19 | AH22: 18943.22054 | AI22: 19874.85433 | AJ22: 17887.3689 | AK22: 19874.85433
B23: Puebla | C23: Zona 2 | D23: 0.8 | F23: 21 | H23: 1967 | R23: 20 | S23: 18521.78824 | AC23: 20 | AD23: 12659.52006 | AE23: 20 | AF23: 20753.31157 | AG23: 20 | AH23: 19780.50009 | AI23: 20753.31157 | AJ23: 18677.98041 | AK23: 20753.31157
B24: Querétaro | C24: Zona 2 | D24: 0.8 | F24: 22 | H24: 1968 | R24: 21 | S24: 19331.36849 | AC24: 21 | AD24: 13195.37897 | AE24: 21 | AF24: 21631.76881 | AG24: 21 | AH24: 20617.77965 | AI24: 21631.76881 | AJ24: 19468.59193 | AK24: 21631.76881
B25: Quintana Roo Zona 1 | C25: Zona 1 | D25: 1 | F25: 23 | H25: 1969 | R25: 22 | S25: 20091.66995 | AC25: 22 | AD25: 13698.62039 | AE25: 22 | AF25: 22456.75474 | AG25: 22 | AH25: 21404.09436 | AI25: 22456.75474 | AJ25: 20211.07926 | AK25: 22456.75474
B26: Quintana Roo Zona 2 | C26: Zona 2 | D26: 0.8 | F26: 24 | H26: 1970 | R26: 23 | S26: 20957.56883 | AC26: 23 | AD26: 14271.75645 | AE26: 23 | AF26: 23396.32204 | AG26: 23 | AH26: 22299.61945 | AI26: 23396.32204 | AJ26: 21056.68984 | AK26: 23396.32204
B27: San Luis Potosí | C27: Zona 2 | D27: 0.8 | F27: 25 | H27: 1971 | R27: 24 | S27: 21767.14908 | AC27: 24 | AD27: 14807.61536 | AE27: 24 | AF27: 24274.77928 | AG27: 24 | AH27: 23136.899 | AI27: 24274.77928 | AJ27: 21847.30135 | AK27: 24274.77928
B28: Sinaloa | C28: Zona 2 | D28: 0.8 | F28: 26 | H28: 1972 | R28: 25 | S28: 22330.33534 | AC28: 25 | AD28: 15180.38678 | AE28: 25 | AF28: 24885.87997 | AG28: 25 | AH28: 23719.35435 | AI28: 24885.87997 | AJ28: 22397.29197 | AK28: 24885.87997
B29: Sonora | C29: Zona 1 | D29: 1 | F29: 27 | H29: 1973 | R29: 26 | S29: 23196.23422 | AC29: 26 | AD29: 15753.52284 | AE29: 26 | AF29: 25825.44728 | AG29: 26 | AH29: 24614.87944 | AI29: 25825.44728 | AJ29: 23242.90255 | AK29: 25825.44728
B30: Tabasco | C30: Zona 2 | D30: 0.8 | F30: 28 | H30: 1974 | R30: 27 | S30: 24033.97379 | AC30: 27 | AD30: 16308.02033 | AE30: 27 | AF30: 26734.45955 | AG30: 27 | AH30: 25481.28176 | AI30: 26734.45955 | AJ30: 24061.0136 | AK30: 26734.45955
B31: Tamaulipas | C31: Zona 2 | D31: 0.8 | F31: 29 | H31: 1975 | R31: 28 | S31: 24899.87267 | AC31: 28 | AD31: 16881.15638 | AE31: 28 | AF31: 27674.02686 | AG31: 28 | AH31: 26376.80685 | AI31: 27674.02686 | AJ31: 24906.62417 | AK31: 27674.02686
B32: Tlaxcala | C32: Zona 2 | D32: 0.8 | F32: 30 | H32: 1976 | R32: 29 | S32: 25962.88674 | AC32: 29 | AD32: 17584.76244 | AE32: 29 | AF32: 28827.47941 | AG32: 29 | AH32: 27476.19131 | AI32: 28827.47941 | AJ32: 25944.73147 | AK32: 28827.47941
B33: Veracruz | C33: Zona 2 | D33: 0.8 | F33: 31 | H33: 1977 | R33: 30 | S33: 28307.93177 | AC33: 30 | AD33: 19136.94121 | AE33: 30 | AF33: 31372.03477 | AG33: 30 | AH33: 29901.47064 | AI33: 31372.03477 | AJ33: 28234.83129 | AK33: 31372.03477
B34: Yucatán | C34: Zona 2 | D34: 0.8 | H34: 1978 | R34: 31 | S34: 29506.42342 | AC34: 31 | AD34: 19930.2195 | AE34: 31 | AF34: 32672.49098 | AG34: 31 | AH34: 31140.96797 | AI34: 32672.49098 | AJ34: 29405.24188 | AK34: 32672.49098
B35: Zacatecas | C35: Zona 2 | D35: 0.8 | H35: 1979 | R35: 32 | S35: 30690.20966 | AC35: 32 | AD35: 20713.76431 | AE35: 32 | AF35: 33956.99068 | AG35: 32 | AH35: 32365.25674 | AI35: 33956.99068 | AJ35: 30561.29161 | AK35: 33956.99068
H36: 1980 | R36: 33 | S36: 31513.71313 | AC36: 33 | AD36: 21258.83897 | AE36: 33 | AF36: 34850.55568 | AG36: 33 | AH36: 33216.93589 | AI36: 34850.55568 | AJ36: 31365.50012 | AK36: 34850.55568
H37: 1981 | R37: 34 | S37: 32396.03828 | AC37: 34 | AD37: 21842.84752 | AE37: 34 | AF37: 35807.94676 | AG37: 34 | AH37: 34129.44926 | AI37: 35807.94676 | AJ37: 32227.15209 | AK37: 35807.94676
H38: 1982 | R38: 35 | S38: 33212.18904 | AC38: =R38 -> 35 | AD38: 22383.05544 | AE38: 35 | AF38: 36693.53351 | AG38: 35 | AH38: 34973.52412 | AI38: 36693.53351 | AJ38: 33024.18016 | AK38: 36693.53351
H39: 1983 | R39: 36 | S39: 34065.10334 | AC39: 36 | AD39: 22947.59705 | AE39: 36 | AF39: 37619.01155 | AG39: 36 | AH39: 35855.62038 | AI39: 37619.01155 | AJ39: 33857.11039 | AK39: 37619.01155
H40: 1984 | R40: 37 | S40: 34918.01765 | AC40: 37 | AD40: 23512.13865 | AE40: 37 | AF40: 38544.48959 | AG40: 37 | AH40: 36737.71664 | AI40: 38544.48959 | AJ40: 34690.04063 | AK40: 38544.48959
H41: 1985 | R41: 38 | S41: 35734.16841 | AC41: 38 | AD41: 24052.34657 | AE41: 38 | AF41: 39430.07634 | AG41: 38 | AH41: 37581.79151 | AI41: 39430.07634 | AJ41: 35487.0687 | AK41: 39430.07634
H42: 1986 | R42: 39 | S42: 36851.78026 | AC42: 39 | AD42: 24792.09074 | AE42: 39 | AF42: 40642.7717 | AG42: 39 | AH42: 38737.64178 | AI42: 40642.7717 | AJ42: 36578.49453 | AK42: 40642.7717
H43: 1987 | R43: 40 | S43: 37866.45418 | AC43: 40 | AD43: 25463.70058 | AE43: 40 | AF43: 41743.77144 | AG43: 40 | AH43: 39787.03215 | AI43: 41743.77144 | AJ43: 37569.3943 | AK43: 41743.77144
H44: 1988 | R44: 41 | S44: 38866.42268 | AC44: 41 | AD44: 26125.57694 | AE44: 41 | AF44: 42828.81466 | AG44: 41 | AH44: 40821.21397 | AI44: 42828.81466 | AJ44: 38545.9332 | AK44: 42828.81466
H45: 1989 | R45: 42 | S45: 39881.0966 | AC45: 42 | AD45: 26797.18678 | AE45: 42 | AF45: 43929.8144 | AG45: 42 | AH45: 41870.60435 | AI45: 43929.8144 | AJ45: 39536.83296 | AK45: 43929.8144
H46: 1990 | R46: 43 | S46: 41042.82471 | AC46: 43 | AD46: 27566.13138 | AE46: 43 | AF46: 45190.37932 | AG46: 43 | AH46: 43072.08029 | AI46: 45190.37932 | AJ46: 40671.34139 | AK46: 45190.37932
H47: 1991 | R47: 44 | S47: 42241.31636 | AC47: 44 | AD47: 28359.40968 | AE47: 44 | AF47: 46490.83553 | AG47: 44 | AH47: 44311.57762 | AI47: 46490.83553 | AJ47: 41841.75198 | AK47: 46490.83553
H48: 1992 | R48: 45 | S48: 43879.64085 | AC48: 45 | AD48: 29443.81209 | AE48: 45 | AF48: 48268.54441 | AG48: 45 | AH48: 46005.95639 | AI48: 48268.54441 | AJ48: 43441.68997 | AK48: 48268.54441
H49: 1993 | R49: 46 | S49: 45128.03707 | AC49: 46 | AD49: 30270.12207 | AE49: 46 | AF49: 49623.15093 | AG49: 46 | AH49: 47297.06573 | AI49: 49623.15093 | AJ49: 44660.83584 | AK49: 49623.15093
H50: 1994 | R50: 47 | S50: 46316.98584 | AC50: 47 | AD50: 31057.08395 | AE50: 47 | AF50: 50913.25238 | AG50: 47 | AH50: 48526.69368 | AI50: 50913.25238 | AJ50: 45821.92715 | AK50: 50913.25238
H51: 1995 | R51: 48 | S51: 48598.28131 | AC51: 48 | AD51: 32567.06707 | AE51: 48 | AF51: 53388.63455 | AG51: 48 | AH51: 50886.0423 | AI51: 53388.63455 | AJ51: 48049.77109 | AK51: 53388.63455
H52: 1996 | R52: 49 | S52: 50188.5003 | AC52: 49 | AD52: 33619.62859 | AE52: 49 | AF52: 55114.14524 | AG52: 49 | AH52: 52530.66968 | AI52: 55114.14524 | AJ52: 49602.73071 | AK52: 55114.14524
H53: 1997 | R53: 50 | S53: 52090.97479 | AC53: 50 | AD53: 34878.87116 | AE53: 50 | AF53: 57178.47731 | AG53: 50 | AH53: 54498.23619 | AI53: 57178.47731 | AJ53: 51460.62958 | AK53: 57178.47731
H54: 1998 | R54: 51 | S54: 53427.60352 | AC54: 51 | AD54: 35763.58199 | AE54: 51 | AF54: 58628.82294 | AG54: 51 | AH54: 55880.59687 | AI54: 58628.82294 | AJ54: 52765.94065 | AK54: 58628.82294
H55: 1999 | R55: 52 | S55: 55865.80894 | AC55: 52 | AD55: 37377.42337 | AE55: 52 | AF55: 61274.46454 | AG55: 52 | AH55: 58402.22402 | AI55: 61274.46454 | AJ55: 55147.01809 | AK55: 61274.46454
H56: 2000 | R56: 53 | S56: 59037.32981 | AC56: 53 | AD56: 39476.6442 | AE56: 53 | AF56: 64715.81017 | AG56: 53 | AH56: 61682.25656 | AI56: 64715.81017 | AJ56: 58244.22915 | AK56: 64715.81017
H57: 2001 | R57: 54 | S57: 62777.90346 | AC57: 54 | AD57: 41952.51949 | AE57: 54 | AF57: 68774.62211 | AG57: 54 | AH57: 65550.8117 | AI57: 68774.62211 | AJ57: 61897.1599 | AK57: 68774.62211
H58: 2002 | R58: 55 | S58: 67440.85106 | AC58: 55 | AD58: 45038.91152 | AE58: 55 | AF58: 73834.28118 | AG58: 55 | AH58: 70373.29925 | AI58: 73834.28118 | AJ58: 66450.85306 | AK58: 73834.28118
H59: 2003 | R59: 56 | S59: 72945.2928 | AC59: 56 | AD59: 48682.28618 | AE59: 56 | AF59: 79807.02652 | AG59: 56 | AH59: 76066.07216 | AI59: 79807.02652 | AJ59: 71826.32387 | AK59: 79807.02652
H60: 2004 | R60: 57 | S60: 76482.18076 | AC60: 57 | AD60: 51023.34247 | AE60: 57 | AF60: 83644.82372 | AG60: 57 | AH60: 79723.97261 | AI60: 83644.82372 | AJ60: 75280.34135 | AK60: 83644.82372
H61: 2005 | R61: 58 | S61: 82089.63865 | AC61: 58 | AD61: 54734.90323 | AE61: 58 | AF61: 89729.34956 | AG61: 58 | AH61: 85523.2863 | AI61: 89729.34956 | AJ61: 80756.41461 | AK61: 89729.34956
H62: 2006 | R62: 59 | S62: 87834.06032 | AC62: 59 | AD62: 58537.11994 | AE62: 59 | AF62: 95962.4917 | AG62: 59 | AH62: 91464.2499 | AI62: 95962.4917 | AJ62: 86366.24253 | AK62: 95962.4917
H63: 2007 | R63: 60 | S63: 94150.50714 | AC63: 60 | AD63: 62717.9585 | AE63: 60 | AF63: 102816.3254 | AG63: 60 | AH63: 97996.81016 | AI63: 102816.3254 | AJ63: 92534.69287 | AK63: 102816.3254
H64: 2008 | R64: 61 | S64: 100587.8044 | AC64: 61 | AD64: 66978.7876 | AE64: 61 | AF64: 109801.2912 | AG64: 61 | AH64: 104654.3556 | AI64: 109801.2912 | AJ64: 98821.16204 | AK64: 109801.2912
H65: 2009 | R65: 62 | S65: 107226.5189 | AC65: 62 | AD65: 71372.93426 | AE65: 62 | AF65: 117004.8103 | AG65: 62 | AH65: 111520.2098 | AI65: 117004.8103 | AJ65: 105304.3292 | AK65: 117004.8103
H66: 2010 | R66: 63 | S66: 116830.0962 | AC66: 63 | AD66: 77729.51534 | AE66: 63 | AF66: 127425.435 | AG66: 63 | AH66: 121452.3677 | AI66: 127425.435 | AJ66: 114682.8915 | AK66: 127425.435
H67: 2011 | R67: 64 | S67: 127859.7081 | AC67: 64 | AD67: 85029.98472 | AE67: 64 | AF67: 139393.4176 | AG67: 64 | AH67: 132859.3511 | AI67: 139393.4176 | AJ67: 125454.0758 | AK67: 139393.4176
H68: 2012 | R68: 65 | S68: 138163.3572 | AC68: 65 | AD68: =S68*$W$14+$AB$3 -> 91849.94139 | AE68: =AC68 -> 65 | AF68: =AD68/(1-SUM($Y$3:$Y$5)) -> 150573.6744 | AG68: =AE68 -> 65 | AH68: =AD68/(1-SUM($Z$3:$Z$5)) -> 143515.5334 | AI68: =AF68 -> 150573.6744 | AJ68: =AI68*90% -> 135516.307 | AK68: =AI68 -> 150573.6744
H69: 2013 | R69: 66 | S69: 147274.4594 | AC69: 66 | AD69: 97880.55457 | AE69: 66 | AF69: 160459.9255 | AG69: 66 | AH69: 152938.3665 | AI69: 160459.9255 | AJ69: 144413.933 | AK69: 160459.9255
H70: 2014 | R70: 67 | S70: 156556.3948 | AC70: 67 | AD70: 104024.2418 | AE70: 67 | AF70: 170531.5439 | AG70: 67 | AH70: 162537.8777 | AI70: 170531.5439 | AJ70: 153478.3895 | AK70: 170531.5439
H71: 2015 | R71: 68 | S71: 169084.1603 | AC71: 68 | AD71: 112316.3349 | AE71: 68 | AF71: 184125.1392 | AG71: 68 | AH71: 175494.2733 | AI71: 184125.1392 | AJ71: 165712.6252 | AK71: 184125.1392
H72: 2016 | R72: 69 | S72: 181864.1082 | AC72: 69 | AD72: 120775.3468 | AE72: 69 | AF72: 197992.3718 | AG72: 69 | AH72: 188711.4793 | AI72: 197992.3718 | AJ72: 178193.1346 | AK72: 197992.3718
H73: 2017 | R73: 70 | S73: 194701.0004 | AC73: 70 | AD73: 129272.05 | AE73: 70 | AF73: 211921.3934 | AG73: 70 | AH73: 201987.5781 | AI73: 211921.3934 | AJ73: 190729.2541 | AK73: 211921.3934
H74: 2018 | R74: 71 | S74: 207668.0512 | AC74: 71 | AD74: 137854.9048 | AE74: 71 | AF74: 225991.6473 | AG74: 71 | AH74: 215398.2888 | AI74: 225991.6473 | AJ74: 203392.4825 | AK74: 225991.6473
H75: 2019 | R75: 72 | S75: 220740.8559 | AC75: 72 | AD75: 146507.7579 | AE75: 72 | AF75: 240176.6522 | AG75: 72 | AH75: 228918.3717 | AI75: 240176.6522 | AJ75: 216158.987 | AK75: 240176.6522
H76: 2020 | R76: 73 | S76: 236189.0551 | AC76: 73 | AD76: 156732.8779 | AE76: 73 | AF76: 256939.1441 | AG76: 73 | AH76: 244895.1217 | AI76: 256939.1441 | AJ76: 231245.2297 | AK76: 256939.1441
H77: 2021 | R77: 74 | S77: 251767.413 | AC77: 74 | AD77: 167044.1496 | AE77: 74 | AF77: 273842.8681 | AG77: 74 | AH77: 261006.4837 | AI77: 273842.8681 | AJ77: 246458.5813 | AK77: 273842.8681
H78: 2022 | R78: 75 | S78: 267500.3341 | AC78: 75 | AD78: 177457.7263 | AE78: 75 | AF78: 290914.3053 | AG78: 75 | AH78: 277277.6973 | AI78: 290914.3053 | AJ78: 261822.8748 | AK78: 290914.3053
H79: 2023 | R79: 76 | S79: 283379.6837 | AC79: 76 | AD79: 187968.2235 | AE79: 76 | AF79: 308144.6287 | AG79: 76 | AH79: 293700.3492 | AI79: 308144.6287 | AJ79: 277330.1658 | AK79: 308144.6287
R80: 77 | S80: 299372.922 | AC80: 77 | AD80: 198554.1035 | AE80: 77 | AF80: 325498.5302 | AG80: 77 | AH80: 310240.7866 | AI80: 325498.5302 | AJ80: 292948.6772 | AK80: 325498.5302
R81: 78 | S81: 315813.5806 | AC81: 78 | AD81: 209436.1296 | AE81: 78 | AF81: 343337.9173 | AG81: 78 | AH81: 327243.9524 | AI81: 343337.9173 | AJ81: 309004.1256 | AK81: 343337.9173
R82: 79 | S82: 332441.3421 | AC82: 79 | AD82: 220441.9986 | AE82: 79 | AF82: 361380.3256 | AG82: 79 | AH82: 344440.6229 | AI82: 361380.3256 | AJ82: 325242.2931 | AK82: 361380.3256
R83: 80 | S83: 349264.3416 | AC83: 80 | AD83: 231577.0951 | AE83: 80 | AF83: 379634.5822 | AG83: 80 | AH83: 361839.2111 | AI83: 379634.5822 | AJ83: 341671.124 | AK83: 379634.5822
R84: 81 | S84: 366062.9363 | AC84: 81 | AD84: 242696.0382 | AE84: 81 | AF84: 397862.3577 | AG84: 81 | AH84: 379212.5597 | AI84: 397862.3577 | AJ84: 358076.1219 | AK84: 397862.3577
R85: 82 | S85: 383138.118 | AC85: 82 | AD85: 253998.0534 | AE85: 82 | AF85: 416390.2515 | AG85: 82 | AH85: 396871.9585 | AI85: 416390.2515 | AJ85: 374751.2264 | AK85: 416390.2515
R86: 83 | S86: 400359.7282 | AC86: 83 | AD86: 265396.9893 | AE86: 83 | AF86: 435077.0316 | AG86: 83 | AH86: 414682.7957 | AI86: 435077.0316 | AJ86: 391569.3284 | AK86: 435077.0316
R87: 84 | S87: 417573.2035 | AC87: 84 | AD87: 276790.5406 | AE87: 84 | AF87: 453754.9846 | AG87: 84 | AH87: 432485.2197 | AI87: 453754.9846 | AJ87: 408379.4861 | AK87: 453754.9846

Sheet MasterBase (hidden)
A1: Producto Seleccionado | M1: Tarifas base
A2: Contrucción del plan seleccionado | M2: Llave de busqueda | N2: PlanName | O2: Region | P2: LowAge | Q2: Rate | R2: RateType
A3: Suma asegurada | B3: Deducible | C3: Coaseguro | D3: Tipo de cliente | E3: Código de producto | M3: NPPSS5D9C0Mexico Region 118Male | N3: NPPSS5D9C0 | O3: Mexico Region 1 | P3: 18 | Q3: 15752 | R3: Male
A4: ='Datos Asegurado'!C27/1000000 -> 5 | B4: ='Datos Asegurado'!C29/1000 -> 9 | C4: ='Datos Asegurado'!C31*100 -> 0 | D4: =IF('Datos Asegurado'!C24="Transfer Bupa Internacional","T",IF('Datos Asegurado'!C24="Nuevo negocio - con periodos de espera","PE","")) -> PE | E4: =CONCATENATE("NPS",A4,"D",B4,"C",C4,D4) -> NPS5D9C0PE | M4: NPPSS5D9C0Mexico Region 119Male | N4: NPPSS5D9C0 | O4: Mexico Region 1 | P4: 19 | Q4: 16363 | R4: Male
M5: NPPSS5D9C0Mexico Region 120Male | N5: NPPSS5D9C0 | O5: Mexico Region 1 | P5: 20 | Q5: 17121 | R5: Male
A6: Región seleccionada | M6: NPPSS5D9C0Mexico Region 121Male | N6: NPPSS5D9C0 | O6: Mexico Region 1 | P6: 21 | Q6: 17788 | R6: Male
A7: =IF('Datos Asegurado'!E11="Zona 1","Mexico Region 1","Mexico Region 2") -> Mexico Region 1 | M7: NPPSS5D9C0Mexico Region 122Male | N7: NPPSS5D9C0 | O7: Mexico Region 1 | P7: 22 | Q7: 18429 | R7: Male
M8: NPPSS5D9C0Mexico Region 123Male | N8: NPPSS5D9C0 | O8: Mexico Region 1 | P8: 23 | Q8: 19146 | R8: Male
A9: Edad titular | B9: Sexo titular | C9: Valor prima | M9: NPPSS5D9C0Mexico Region 124Male | N9: NPPSS5D9C0 | O9: Mexico Region 1 | P9: 24 | Q9: 19830 | R9: Male
A10: ='Datos Asegurado'!C8 -> 18 | B10: =IF('Datos Asegurado'!C9="Masculino","Male","Female") -> Male | C10: =IFERROR(VLOOKUP(CONCATENATE($E$4,$A$7,A10,B10),$M$3:$R$158978,5,FALSE),0) -> 14248 | M10: NPPSS5D9C0Mexico Region 125Male | N10: NPPSS5D9C0 | O10: Mexico Region 1 | P10: 25 | Q10: 20350 | R10: Male
M11: NPPSS5D9C0Mexico Region 126Male | N11: NPPSS5D9C0 | O11: Mexico Region 1 | P11: 26 | Q11: 21084 | R11: Male
M12: NPPSS5D9C0Mexico Region 127Male | N12: NPPSS5D9C0 | O12: Mexico Region 1 | P12: 27 | Q12: 21802 | R12: Male
A13: Conyuges | E13: Hijos | I13: Dependientes | M13: NPPSS5D9C0Mexico Region 128Male | N13: NPPSS5D9C0 | O13: Mexico Region 1 | P13: 28 | Q13: 22546 | R13: Male
A14: Econyugues | B14: S Conyugues | C14: Valor prima | E14: E hijos | F14: S Hijos | G14: Valor prima | I14: E dependientes | J14: S dependientes | K14: Valor prima | M14: NPPSS5D9C0Mexico Region 129Male | N14: NPPSS5D9C0 | O14: Mexico Region 1 | P14: 29 | Q14: 23436 | R14: Male
A15: =IF('Datos Asegurado'!I6="Conyuge",'Datos Asegurado'!N6,"") ->  | B15: =IF('Datos Asegurado'!I6="Conyuge",IF('Datos Asegurado'!J6="Masculino","Male","Female"),"") ->  | C15: =IFERROR(VLOOKUP(CONCATENATE($E$4,$A$7,A15,B15),$M$3:$R$158978,5,FALSE),0) -> 0 | E15: =IF('Datos Asegurado'!I6="Hij@",'Datos Asegurado'!N6,"") ->  | F15: =IF('Datos Asegurado'!I6="Hij@",IF('Datos Asegurado'!J6="Masculino","Male","Female"),"") ->  | G15: =IFERROR(VLOOKUP(CONCATENATE($E$4,$A$7,E15,F15),$M$3:$R$158978,5,FALSE),0) -> 0 | I15: =IF('Datos Asegurado'!I6="Dependiente economico",'Datos Asegurado'!N6,"") ->  | J15: =IF('Datos Asegurado'!I6="Dependiente economico",IF('Datos Asegurado'!J6="Masculino","Male","Female"),"") ->  | K15: =IFERROR(VLOOKUP(CONCATENATE($E$4,$A$7,I15,J15),$M$3:$R$158978,5,FALSE),0) -> 0 | M15: NPPSS5D9C0Mexico Region 130Male | N15: NPPSS5D9C0 | O15: Mexico Region 1 | P15: 30 | Q15: 24955 | R15: Male
A16: =IF('Datos Asegurado'!I7="Conyuge",'Datos Asegurado'!N7,"") ->  | B16: =IF('Datos Asegurado'!I7="Conyuge",IF('Datos Asegurado'!J7="Masculino","Male","Female"),"") ->  | C16: 0 | E16: =IF('Datos Asegurado'!I7="Hij@",'Datos Asegurado'!N7,"") ->  | F16: =IF('Datos Asegurado'!I7="Hij@",IF('Datos Asegurado'!J7="Masculino","Male","Female"),"") ->  | G16: 0 | I16: =IF('Datos Asegurado'!I7="Dependiente economico",'Datos Asegurado'!N7,"") ->  | J16: =IF('Datos Asegurado'!I7="Dependiente economico",IF('Datos Asegurado'!J7="Masculino","Male","Female"),"") ->  | K16: 0 | M16: NPPSS5D9C0Mexico Region 131Male | N16: NPPSS5D9C0 | O16: Mexico Region 1 | P16: 31 | Q16: 26252 | R16: Male
A17: =IF('Datos Asegurado'!I8="Conyuge",'Datos Asegurado'!N8,"") ->  | B17: =IF('Datos Asegurado'!I8="Conyuge",IF('Datos Asegurado'!J8="Masculino","Male","Female"),"") ->  | C17: 0 | E17: =IF('Datos Asegurado'!I8="Hij@",'Datos Asegurado'!N8,"") ->  | F17: =IF('Datos Asegurado'!I8="Hij@",IF('Datos Asegurado'!J8="Masculino","Male","Female"),"") ->  | G17: 0 | I17: =IF('Datos Asegurado'!I8="Dependiente economico",'Datos Asegurado'!N8,"") ->  | J17: =IF('Datos Asegurado'!I8="Dependiente economico",IF('Datos Asegurado'!J8="Masculino","Male","Female"),"") ->  | K17: 0 | M17: NPPSS5D9C0Mexico Region 132Male | N17: NPPSS5D9C0 | O17: Mexico Region 1 | P17: 32 | Q17: 27254 | R17: Male
A18: =IF('Datos Asegurado'!I9="Conyuge",'Datos Asegurado'!N9,"") ->  | B18: =IF('Datos Asegurado'!I9="Conyuge",IF('Datos Asegurado'!J9="Masculino","Male","Female"),"") ->  | C18: 0 | E18: =IF('Datos Asegurado'!I9="Hij@",'Datos Asegurado'!N9,"") ->  | F18: =IF('Datos Asegurado'!I9="Hij@",IF('Datos Asegurado'!J9="Masculino","Male","Female"),"") ->  | G18: 0 | I18: =IF('Datos Asegurado'!I9="Dependiente economico",'Datos Asegurado'!N9,"") ->  | J18: =IF('Datos Asegurado'!I9="Dependiente economico",IF('Datos Asegurado'!J9="Masculino","Male","Female"),"") ->  | K18: 0 | M18: NPPSS5D9C0Mexico Region 133Male | N18: NPPSS5D9C0 | O18: Mexico Region 1 | P18: 33 | Q18: 27998 | R18: Male
A19: =IF('Datos Asegurado'!I10="Conyuge",'Datos Asegurado'!N10,"") ->  | B19: =IF('Datos Asegurado'!I10="Conyuge",IF('Datos Asegurado'!J10="Masculino","Male","Female"),"") ->  | C19: 0 | E19: =IF('Datos Asegurado'!I10="Hij@",'Datos Asegurado'!N10,"") ->  | F19: =IF('Datos Asegurado'!I10="Hij@",IF('Datos Asegurado'!J10="Masculino","Male","Female"),"") ->  | G19: 0 | I19: =IF('Datos Asegurado'!I10="Dependiente economico",'Datos Asegurado'!N10,"") ->  | J19: =IF('Datos Asegurado'!I10="Dependiente economico",IF('Datos Asegurado'!J10="Masculino","Male","Female"),"") ->  | K19: 0 | M19: NPPSS5D9C0Mexico Region 134Male | N19: NPPSS5D9C0 | O19: Mexico Region 1 | P19: 34 | Q19: 28789 | R19: Male
A20: =IF('Datos Asegurado'!I11="Conyuge",'Datos Asegurado'!N11,"") ->  | B20: =IF('Datos Asegurado'!I11="Conyuge",IF('Datos Asegurado'!J11="Masculino","Male","Female"),"") ->  | C20: 0 | E20: =IF('Datos Asegurado'!I11="Hij@",'Datos Asegurado'!N11,"") ->  | F20: =IF('Datos Asegurado'!I11="Hij@",IF('Datos Asegurado'!J11="Masculino","Male","Female"),"") ->  | G20: 0 | I20: =IF('Datos Asegurado'!I11="Dependiente economico",'Datos Asegurado'!N11,"") ->  | J20: =IF('Datos Asegurado'!I11="Dependiente economico",IF('Datos Asegurado'!J11="Masculino","Male","Female"),"") ->  | K20: 0 | M20: NPPSS5D9C0Mexico Region 135Male | N20: NPPSS5D9C0 | O20: Mexico Region 1 | P20: 35 | Q20: 29536 | R20: Male
A21: =IF('Datos Asegurado'!I12="Conyuge",'Datos Asegurado'!N12,"") ->  | B21: =IF('Datos Asegurado'!I12="Conyuge",IF('Datos Asegurado'!J12="Masculino","Male","Female"),"") ->  | C21: 0 | E21: =IF('Datos Asegurado'!I12="Hij@",'Datos Asegurado'!N12,"") ->  | F21: =IF('Datos Asegurado'!I12="Hij@",IF('Datos Asegurado'!J12="Masculino","Male","Female"),"") ->  | G21: 0 | I21: =IF('Datos Asegurado'!I12="Dependiente economico",'Datos Asegurado'!N12,"") ->  | J21: =IF('Datos Asegurado'!I12="Dependiente economico",IF('Datos Asegurado'!J12="Masculino","Male","Female"),"") ->  | K21: 0 | M21: NPPSS5D9C0Mexico Region 136Male | N21: NPPSS5D9C0 | O21: Mexico Region 1 | P21: 36 | Q21: 30313 | R21: Male
A22: =IF('Datos Asegurado'!I13="Conyuge",'Datos Asegurado'!N13,"") ->  | B22: =IF('Datos Asegurado'!I13="Conyuge",IF('Datos Asegurado'!J13="Masculino","Male","Female"),"") ->  | C22: 0 | E22: =IF('Datos Asegurado'!I13="Hij@",'Datos Asegurado'!N13,"") ->  | F22: =IF('Datos Asegurado'!I13="Hij@",IF('Datos Asegurado'!J13="Masculino","Male","Female"),"") ->  | G22: 0 | I22: =IF('Datos Asegurado'!I13="Dependiente economico",'Datos Asegurado'!N13,"") ->  | J22: =IF('Datos Asegurado'!I13="Dependiente economico",IF('Datos Asegurado'!J13="Masculino","Male","Female"),"") ->  | K22: 0 | M22: NPPSS5D9C0Mexico Region 137Male | N22: NPPSS5D9C0 | O22: Mexico Region 1 | P22: 37 | Q22: 31093 | R22: Male
A23: =IF('Datos Asegurado'!I14="Conyuge",'Datos Asegurado'!N14,"") ->  | B23: =IF('Datos Asegurado'!I14="Conyuge",IF('Datos Asegurado'!J14="Masculino","Male","Female"),"") ->  | C23: 0 | E23: =IF('Datos Asegurado'!I14="Hij@",'Datos Asegurado'!N14,"") ->  | F23: =IF('Datos Asegurado'!I14="Hij@",IF('Datos Asegurado'!J14="Masculino","Male","Female"),"") ->  | G23: 0 | I23: =IF('Datos Asegurado'!I14="Dependiente economico",'Datos Asegurado'!N14,"") ->  | J23: =IF('Datos Asegurado'!I14="Dependiente economico",IF('Datos Asegurado'!J14="Masculino","Male","Female"),"") ->  | K23: 0 | M23: NPPSS5D9C0Mexico Region 138Male | N23: NPPSS5D9C0 | O23: Mexico Region 1 | P23: 38 | Q23: 31848 | R23: Male
B24: Total tarifa base | C24: =SUM(C15:C23) -> 0 | F24: Total tarifa base | G24: =SUM(G15:G23) -> 0 | J24: Total tarifa base | K24: =SUM(K15:K23) -> 0 | M24: NPPSS5D9C0Mexico Region 139Male | N24: NPPSS5D9C0 | O24: Mexico Region 1 | P24: 39 | Q24: 32834 | R24: Male
M25: NPPSS5D9C0Mexico Region 140Male | N25: NPPSS5D9C0 | O25: Mexico Region 1 | P25: 40 | Q25: 33745 | R25: Male
M26: NPPSS5D9C0Mexico Region 141Male | N26: NPPSS5D9C0 | O26: Mexico Region 1 | P26: 41 | Q26: 34648 | R26: Male
M27: NPPSS5D9C0Mexico Region 142Male | N27: NPPSS5D9C0 | O27: Mexico Region 1 | P27: 42 | Q27: 35566 | R27: Male
M28: NPPSS5D9C0Mexico Region 143Male | N28: NPPSS5D9C0 | O28: Mexico Region 1 | P28: 43 | Q28: 36600 | R28: Male
M29: NPPSS5D9C0Mexico Region 144Male | N29: NPPSS5D9C0 | O29: Mexico Region 1 | P29: 44 | Q29: 37666 | R29: Male
M30: NPPSS5D9C0Mexico Region 145Male | N30: NPPSS5D9C0 | O30: Mexico Region 1 | P30: 45 | Q30: 39073 | R30: Male
M31: NPPSS5D9C0Mexico Region 146Male | N31: NPPSS5D9C0 | O31: Mexico Region 1 | P31: 46 | Q31: 40188 | R31: Male
M32: NPPSS5D9C0Mexico Region 147Male | N32: NPPSS5D9C0 | O32: Mexico Region 1 | P32: 47 | Q32: 41434 | R32: Male
M33: NPPSS5D9C0Mexico Region 148Male | N33: NPPSS5D9C0 | O33: Mexico Region 1 | P33: 48 | Q33: 44479 | R33: Male
M34: NPPSS5D9C0Mexico Region 149Male | N34: NPPSS5D9C0 | O34: Mexico Region 1 | P34: 49 | Q34: 45920 | R34: Male
M35: NPPSS5D9C0Mexico Region 150Male | N35: NPPSS5D9C0 | O35: Mexico Region 1 | P35: 50 | Q35: 47371 | R35: Male
M36: NPPSS5D9C0Mexico Region 151Male | N36: NPPSS5D9C0 | O36: Mexico Region 1 | P36: 51 | Q36: 50741 | R36: Male
M37: NPPSS5D9C0Mexico Region 152Male | N37: NPPSS5D9C0 | O37: Mexico Region 1 | P37: 52 | Q37: 54063 | R37: Male
M38: NPPSS5D9C0Mexico Region 153Male | N38: NPPSS5D9C0 | O38: Mexico Region 1 | P38: 53 | Q38: 57179 | R38: Male
M39: NPPSS5D9C0Mexico Region 154Male | N39: NPPSS5D9C0 | O39: Mexico Region 1 | P39: 54 | Q39: 60793 | R39: Male
M40: NPPSS5D9C0Mexico Region 155Male | N40: NPPSS5D9C0 | O40: Mexico Region 1 | P40: 55 | Q40: 65239 | R40: Male
M41: NPPSS5D9C0Mexico Region 156Male | N41: NPPSS5D9C0 | O41: Mexico Region 1 | P41: 56 | Q41: 70457 | R41: Male
M42: NPPSS5D9C0Mexico Region 157Male | N42: NPPSS5D9C0 | O42: Mexico Region 1 | P42: 57 | Q42: 73959 | R42: Male
M43: NPPSS5D9C0Mexico Region 158Male | N43: NPPSS5D9C0 | O43: Mexico Region 1 | P43: 58 | Q43: 79320 | R43: Male
M44: NPPSS5D9C0Mexico Region 159Male | N44: NPPSS5D9C0 | O44: Mexico Region 1 | P44: 59 | Q44: 84891 | R44: Male
M45: NPPSS5D9C0Mexico Region 160Male | N45: NPPSS5D9C0 | O45: Mexico Region 1 | P45: 60 | Q45: 91066 | R45: Male
M46: NPPSS5D9C0Mexico Region 161Male | N46: NPPSS5D9C0 | O46: Mexico Region 1 | P46: 61 | Q46: 97925 | R46: Male
M47: NPPSS5D9C0Mexico Region 162Male | N47: NPPSS5D9C0 | O47: Mexico Region 1 | P47: 62 | Q47: 104509 | R47: Male
M48: NPPSS5D9C0Mexico Region 163Male | N48: NPPSS5D9C0 | O48: Mexico Region 1 | P48: 63 | Q48: 114446 | R48: Male
M49: NPPSS5D9C0Mexico Region 164Male | N49: NPPSS5D9C0 | O49: Mexico Region 1 | P49: 64 | Q49: 125791 | R49: Male
M50: NPPSS5D9C0Mexico Region 165Male | N50: NPPSS5D9C0 | O50: Mexico Region 1 | P50: 65 | Q50: 138693 | R50: Male
M51: NPPSS5D9C0Mexico Region 166Male | N51: NPPSS5D9C0 | O51: Mexico Region 1 | P51: 66 | Q51: 151964 | R51: Male
M52: NPPSS5D9C0Mexico Region 167Male | N52: NPPSS5D9C0 | O52: Mexico Region 1 | P52: 67 | Q52: 164524 | R52: Male
M53: NPPSS5D9C0Mexico Region 168Male | N53: NPPSS5D9C0 | O53: Mexico Region 1 | P53: 68 | Q53: 181518 | R53: Male
M54: NPPSS5D9C0Mexico Region 169Male | N54: NPPSS5D9C0 | O54: Mexico Region 1 | P54: 69 | Q54: 199386 | R54: Male
M55: NPPSS5D9C0Mexico Region 170Male | N55: NPPSS5D9C0 | O55: Mexico Region 1 | P55: 70 | Q55: 215734 | R55: Male
M56: NPPSS5D9C0Mexico Region 171Male | N56: NPPSS5D9C0 | O56: Mexico Region 1 | P56: 71 | Q56: 230114 | R56: Male
M57: NPPSS5D9C0Mexico Region 172Male | N57: NPPSS5D9C0 | O57: Mexico Region 1 | P57: 72 | Q57: 244476 | R57: Male
M58: NPPSS5D9C0Mexico Region 173Male | N58: NPPSS5D9C0 | O58: Mexico Region 1 | P58: 73 | Q58: 261740 | R58: Male
M59: NPPSS5D9C0Mexico Region 174Male | N59: NPPSS5D9C0 | O59: Mexico Region 1 | P59: 74 | Q59: 282206 | R59: Male
M60: NPPSS5D9C0Mexico Region 175Male | N60: NPPSS5D9C0 | O60: Mexico Region 1 | P60: 75 | Q60: 299612 | R60: Male
M61: NPPSS5D9C0Mexico Region 176Male | N61: NPPSS5D9C0 | O61: Mexico Region 1 | P61: 76 | Q61: 316922 | R61: Male
M62: NPPSS5D9C0Mexico Region 177Male | N62: NPPSS5D9C0 | O62: Mexico Region 1 | P62: 77 | Q62: 334072 | R62: Male
M63: NPPSS5D9C0Mexico Region 178Male | N63: NPPSS5D9C0 | O63: Mexico Region 1 | P63: 78 | Q63: 351502 | R63: Male
M64: NPPSS5D9C0Mexico Region 179Male | N64: NPPSS5D9C0 | O64: Mexico Region 1 | P64: 79 | Q64: 368830 | R64: Male
M65: NPPSS5D9C0Mexico Region 180Male | N65: NPPSS5D9C0 | O65: Mexico Region 1 | P65: 80 | Q65: 386038 | R65: Male
M66: NPPSS5D9C0Mexico Region 181Male | N66: NPPSS5D9C0 | O66: Mexico Region 1 | P66: 81 | Q66: 402796 | R66: Male
M67: NPPSS5D9C0Mexico Region 182Male | N67: NPPSS5D9C0 | O67: Mexico Region 1 | P67: 82 | Q67: 419496 | R67: Male
M68: NPPSS5D9C0Mexico Region 183Male | N68: NPPSS5D9C0 | O68: Mexico Region 1 | P68: 83 | Q68: 435928 | R68: Male
M69: NPPSS5D9C0Mexico Region 184Male | N69: NPPSS5D9C0 | O69: Mexico Region 1 | P69: 84 | Q69: 451842 | R69: Male
M70: NPPSS5D9C0PEMexico Region 118Male | N70: NPPSS5D9C0PE | O70: Mexico Region 1 | P70: 18 | Q70: 14248 | R70: Male
M71: NPPSS5D9C0PEMexico Region 119Male | N71: NPPSS5D9C0PE | O71: Mexico Region 1 | P71: 19 | Q71: 14798 | R71: Male
M72: NPPSS5D9C0PEMexico Region 120Male | N72: NPPSS5D9C0PE | O72: Mexico Region 1 | P72: 20 | Q72: 15480 | R72: Male
M73: NPPSS5D9C0PEMexico Region 121Male | N73: NPPSS5D9C0PE | O73: Mexico Region 1 | P73: 21 | Q73: 16080 | R73: Male
M74: NPPSS5D9C0PEMexico Region 122Male | N74: NPPSS5D9C0PE | O74: Mexico Region 1 | P74: 22 | Q74: 16657 | R74: Male
M75: NPPSS5D9C0PEMexico Region 123Male | N75: NPPSS5D9C0PE | O75: Mexico Region 1 | P75: 23 | Q75: 17304 | R75: Male
M76: NPPSS5D9C0PEMexico Region 124Male | N76: NPPSS5D9C0PE | O76: Mexico Region 1 | P76: 24 | Q76: 17920 | R76: Male
M77: NPPSS5D9C0PEMexico Region 125Male | N77: NPPSS5D9C0PE | O77: Mexico Region 1 | P77: 25 | Q77: 18386 | R77: Male
M78: NPPSS5D9C0PEMexico Region 126Male | N78: NPPSS5D9C0PE | O78: Mexico Region 1 | P78: 26 | Q78: 19046 | R78: Male
M79: NPPSS5D9C0PEMexico Region 127Male | N79: NPPSS5D9C0PE | O79: Mexico Region 1 | P79: 27 | Q79: 19693 | R79: Male
M80: NPPSS5D9C0PEMexico Region 128Male | N80: NPPSS5D9C0PE | O80: Mexico Region 1 | P80: 28 | Q80: 20363 | R80: Male
M81: NPPSS5D9C0PEMexico Region 129Male | N81: NPPSS5D9C0PE | O81: Mexico Region 1 | P81: 29 | Q81: 21163 | R81: Male
M82: NPPSS5D9C0PEMexico Region 130Male | N82: NPPSS5D9C0PE | O82: Mexico Region 1 | P82: 30 | Q82: 22530 | R82: Male
M83: NPPSS5D9C0PEMexico Region 131Male | N83: NPPSS5D9C0PE | O83: Mexico Region 1 | P83: 31 | Q83: 23698 | R83: Male
M84: NPPSS5D9C0PEMexico Region 132Male | N84: NPPSS5D9C0PE | O84: Mexico Region 1 | P84: 32 | Q84: 24598 | R84: Male
M85: NPPSS5D9C0PEMexico Region 133Male | N85: NPPSS5D9C0PE | O85: Mexico Region 1 | P85: 33 | Q85: 25270 | R85: Male
M86: NPPSS5D9C0PEMexico Region 134Male | N86: NPPSS5D9C0PE | O86: Mexico Region 1 | P86: 34 | Q86: 25982 | R86: Male
M87: NPPSS5D9C0PEMexico Region 135Male | N87: NPPSS5D9C0PE | O87: Mexico Region 1 | P87: 35 | Q87: 26654 | R87: Male
M88: NPPSS5D9C0PEMexico Region 136Male | N88: NPPSS5D9C0PE | O88: Mexico Region 1 | P88: 36 | Q88: 27354 | R88: Male
M89: NPPSS5D9C0PEMexico Region 137Male | N89: NPPSS5D9C0PE | O89: Mexico Region 1 | P89: 37 | Q89: 28055 | R89: Male
M90: NPPSS5D9C0PEMexico Region 138Male | N90: NPPSS5D9C0PE | O90: Mexico Region 1 | P90: 38 | Q90: 28736 | R90: Male
M91: NPPSS5D9C0PEMexico Region 139Male | N91: NPPSS5D9C0PE | O91: Mexico Region 1 | P91: 39 | Q91: 29621 | R91: Male
M92: NPPSS5D9C0PEMexico Region 140Male | N92: NPPSS5D9C0PE | O92: Mexico Region 1 | P92: 40 | Q92: 30441 | R92: Male
M93: NPPSS5D9C0PEMexico Region 141Male | N93: NPPSS5D9C0PE | O93: Mexico Region 1 | P93: 41 | Q93: 31255 | R93: Male
M94: NPPSS5D9C0PEMexico Region 142Male | N94: NPPSS5D9C0PE | O94: Mexico Region 1 | P94: 42 | Q94: 32080 | R94: Male
M95: NPPSS5D9C0PEMexico Region 143Male | N95: NPPSS5D9C0PE | O95: Mexico Region 1 | P95: 43 | Q95: 33011 | R95: Male
M96: NPPSS5D9C0PEMexico Region 144Male | N96: NPPSS5D9C0PE | O96: Mexico Region 1 | P96: 44 | Q96: 33971 | R96: Male
M97: NPPSS5D9C0PEMexico Region 145Male | N97: NPPSS5D9C0PE | O97: Mexico Region 1 | P97: 45 | Q97: 35238 | R97: Male
M98: NPPSS5D9C0PEMexico Region 146Male | N98: NPPSS5D9C0PE | O98: Mexico Region 1 | P98: 46 | Q98: 36239 | R98: Male
M99: NPPSS5D9C0PEMexico Region 147Male | N99: NPPSS5D9C0PE | O99: Mexico Region 1 | P99: 47 | Q99: 37363 | R99: Male
M100: NPPSS5D9C0PEMexico Region 148Male | N100: NPPSS5D9C0PE | O100: Mexico Region 1 | P100: 48 | Q100: 40102 | R100: Male
M101: NPPSS5D9C0PEMexico Region 149Male | N101: NPPSS5D9C0PE | O101: Mexico Region 1 | P101: 49 | Q101: 41398 | R101: Male
M102: NPPSS5D9C0PEMexico Region 150Male | N102: NPPSS5D9C0PE | O102: Mexico Region 1 | P102: 50 | Q102: 42705 | R102: Male
M103: NPPSS5D9C0PEMexico Region 151Male | N103: NPPSS5D9C0PE | O103: Mexico Region 1 | P103: 51 | Q103: 45738 | R103: Male
M104: NPPSS5D9C0PEMexico Region 152Male | N104: NPPSS5D9C0PE | O104: Mexico Region 1 | P104: 52 | Q104: 48729 | R104: Male
M105: NPPSS5D9C0PEMexico Region 153Male | N105: NPPSS5D9C0PE | O105: Mexico Region 1 | P105: 53 | Q105: 51532 | R105: Male
M106: NPPSS5D9C0PEMexico Region 154Male | N106: NPPSS5D9C0PE | O106: Mexico Region 1 | P106: 54 | Q106: 54786 | R106: Male
M107: NPPSS5D9C0PEMexico Region 155Male | N107: NPPSS5D9C0PE | O107: Mexico Region 1 | P107: 55 | Q107: 58788 | R107: Male
M108: NPPSS5D9C0PEMexico Region 156Male | N108: NPPSS5D9C0PE | O108: Mexico Region 1 | P108: 56 | Q108: 63482 | R108: Male
M109: NPPSS5D9C0PEMexico Region 157Male | N109: NPPSS5D9C0PE | O109: Mexico Region 1 | P109: 57 | Q109: 66634 | R109: Male
M110: NPPSS5D9C0PEMexico Region 158Male | N110: NPPSS5D9C0PE | O110: Mexico Region 1 | P110: 58 | Q110: 71461 | R110: Male
M111: NPPSS5D9C0PEMexico Region 159Male | N111: NPPSS5D9C0PE | O111: Mexico Region 1 | P111: 59 | Q111: 76473 | R111: Male
M112: NPPSS5D9C0PEMexico Region 160Male | N112: NPPSS5D9C0PE | O112: Mexico Region 1 | P112: 60 | Q112: 82032 | R112: Male
M113: NPPSS5D9C0PEMexico Region 161Male | N113: NPPSS5D9C0PE | O113: Mexico Region 1 | P113: 61 | Q113: 88204 | R113: Male
M114: NPPSS5D9C0PEMexico Region 162Male | N114: NPPSS5D9C0PE | O114: Mexico Region 1 | P114: 62 | Q114: 94129 | R114: Male
M115: NPPSS5D9C0PEMexico Region 163Male | N115: NPPSS5D9C0PE | O115: Mexico Region 1 | P115: 63 | Q115: 103073 | R115: Male
M116: NPPSS5D9C0PEMexico Region 164Male | N116: NPPSS5D9C0PE | O116: Mexico Region 1 | P116: 64 | Q116: 113282 | R116: Male
M117: NPPSS5D9C0PEMexico Region 165Male | N117: NPPSS5D9C0PE | O117: Mexico Region 1 | P117: 65 | Q117: 124896 | R117: Male
M118: NPPSS5D9C0PEMexico Region 166Male | N118: NPPSS5D9C0PE | O118: Mexico Region 1 | P118: 66 | Q118: 136843 | R118: Male
M119: NPPSS5D9C0PEMexico Region 167Male | N119: NPPSS5D9C0PE | O119: Mexico Region 1 | P119: 67 | Q119: 148149 | R119: Male
M120: NPPSS5D9C0PEMexico Region 168Male | N120: NPPSS5D9C0PE | O120: Mexico Region 1 | P120: 68 | Q120: 163445 | R120: Male
M121: NPPSS5D9C0PEMexico Region 169Male | N121: NPPSS5D9C0PE | O121: Mexico Region 1 | P121: 69 | Q121: 179527 | R121: Male
M122: NPPSS5D9C0PEMexico Region 170Male | N122: NPPSS5D9C0PE | O122: Mexico Region 1 | P122: 70 | Q122: 194240 | R122: Male
M123: NPPSS5D9C0PEMexico Region 171Male | N123: NPPSS5D9C0PE | O123: Mexico Region 1 | P123: 71 | Q123: 207182 | R123: Male
M124: NPPSS5D9C0PEMexico Region 172Male | N124: NPPSS5D9C0PE | O124: Mexico Region 1 | P124: 72 | Q124: 220108 | R124: Male
M125: NPPSS5D9C0PEMexico Region 173Male | N125: NPPSS5D9C0PE | O125: Mexico Region 1 | P125: 73 | Q125: 235646 | R125: Male
M126: NPPSS5D9C0PEMexico Region 174Male | N126: NPPSS5D9C0PE | O126: Mexico Region 1 | P126: 74 | Q126: 254064 | R126: Male
M127: NPPSS5D9C0PEMexico Region 175Male | N127: NPPSS5D9C0PE | O127: Mexico Region 1 | P127: 75 | Q127: 269730 | R127: Male
M128: NPPSS5D9C0PEMexico Region 176Male | N128: NPPSS5D9C0PE | O128: Mexico Region 1 | P128: 76 | Q128: 285310 | R128: Male
M129: NPPSS5D9C0PEMexico Region 177Male | N129: NPPSS5D9C0PE | O129: Mexico Region 1 | P129: 77 | Q129: 300744 | R129: Male
M130: NPPSS5D9C0PEMexico Region 178Male | N130: NPPSS5D9C0PE | O130: Mexico Region 1 | P130: 78 | Q130: 316432 | R130: Male
M131: NPPSS5D9C0PEMexico Region 179Male | N131: NPPSS5D9C0PE | O131: Mexico Region 1 | P131: 79 | Q131: 332026 | R131: Male
M132: NPPSS5D9C0PEMexico Region 180Male | N132: NPPSS5D9C0PE | O132: Mexico Region 1 | P132: 80 | Q132: 347514 | R132: Male
M133: NPPSS5D9C0PEMexico Region 181Male | N133: NPPSS5D9C0PE | O133: Mexico Region 1 | P133: 81 | Q133: 362596 | R133: Male
M134: NPPSS5D9C0PEMexico Region 182Male | N134: NPPSS5D9C0PE | O134: Mexico Region 1 | P134: 82 | Q134: 377628 | R134: Male
M135: NPPSS5D9C0PEMexico Region 183Male | N135: NPPSS5D9C0PE | O135: Mexico Region 1 | P135: 83 | Q135: 392416 | R135: Male
M136: NPPSS5D9C0PEMexico Region 184Male | N136: NPPSS5D9C0PE | O136: Mexico Region 1 | P136: 84 | Q136: 406738 | R136: Male
M137: NPPSS5D9C10Mexico Region 118Male | N137: NPPSS5D9C10 | O137: Mexico Region 1 | P137: 18 | Q137: 14888 | R137: Male
M138: NPPSS5D9C10Mexico Region 119Male | N138: NPPSS5D9C10 | O138: Mexico Region 1 | P138: 19 | Q138: 15464 | R138: Male
M139: NPPSS5D9C10Mexico Region 120Male | N139: NPPSS5D9C10 | O139: Mexico Region 1 | P139: 20 | Q139: 16179 | R139: Male
M140: NPPSS5D9C10Mexico Region 121Male | N140: NPPSS5D9C10 | O140: Mexico Region 1 | P140: 21 | Q140: 16809 | R140: Male
M141: NPPSS5D9C10Mexico Region 122Male | N141: NPPSS5D9C10 | O141: Mexico Region 1 | P141: 22 | Q141: 17411 | R141: Male
M142: NPPSS5D9C10Mexico Region 123Male | N142: NPPSS5D9C10 | O142: Mexico Region 1 | P142: 23 | Q142: 18088 | R142: Male
M143: NPPSS5D9C10Mexico Region 124Male | N143: NPPSS5D9C10 | O143: Mexico Region 1 | P143: 24 | Q143: 18734 | R143: Male
M144: NPPSS5D9C10Mexico Region 125Male | N144: NPPSS5D9C10 | O144: Mexico Region 1 | P144: 25 | Q144: 19223 | R144: Male
M145: NPPSS5D9C10Mexico Region 126Male | N145: NPPSS5D9C10 | O145: Mexico Region 1 | P145: 26 | Q145: 19914 | R145: Male
M146: NPPSS5D9C10Mexico Region 127Male | N146: NPPSS5D9C10 | O146: Mexico Region 1 | P146: 27 | Q146: 20591 | R146: Male
M147: NPPSS5D9C10Mexico Region 128Male | N147: NPPSS5D9C10 | O147: Mexico Region 1 | P147: 28 | Q147: 21293 | R147: Male
M148: NPPSS5D9C10Mexico Region 129Male | N148: NPPSS5D9C10 | O148: Mexico Region 1 | P148: 29 | Q148: 22130 | R148: Male
M149: NPPSS5D9C10Mexico Region 130Male | N149: NPPSS5D9C10 | O149: Mexico Region 1 | P149: 30 | Q149: 23563 | R149: Male
M150: NPPSS5D9C10Mexico Region 131Male | N150: NPPSS5D9C10 | O150: Mexico Region 1 | P150: 31 | Q150: 24786 | R150: Male
M151: NPPSS5D9C10Mexico Region 132Male | N151: NPPSS5D9C10 | O151: Mexico Region 1 | P151: 32 | Q151: 25730 | R151: Male
M152: NPPSS5D9C10Mexico Region 133Male | N152: NPPSS5D9C10 | O152: Mexico Region 1 | P152: 33 | Q152: 26432 | R152: Male
M153: NPPSS5D9C10Mexico Region 134Male | N153: NPPSS5D9C10 | O153: Mexico Region 1 | P153: 34 | Q153: 27179 | R153: Male
M154: NPPSS5D9C10Mexico Region 135Male | N154: NPPSS5D9C10 | O154: Mexico Region 1 | P154: 35 | Q154: 27882 | R154: Male
M155: NPPSS5D9C10Mexico Region 136Male | N155: NPPSS5D9C10 | O155: Mexico Region 1 | P155: 36 | Q155: 28614 | R155: Male
M156: NPPSS5D9C10Mexico Region 137Male | N156: NPPSS5D9C10 | O156: Mexico Region 1 | P156: 37 | Q156: 29350 | R156: Male
M157: NPPSS5D9C10Mexico Region 138Male | N157: NPPSS5D9C10 | O157: Mexico Region 1 | P157: 38 | Q157: 30063 | R157: Male
M158: NPPSS5D9C10Mexico Region 139Male | N158: NPPSS5D9C10 | O158: Mexico Region 1 | P158: 39 | Q158: 30989 | R158: Male
M159: NPPSS5D9C10Mexico Region 140Male | N159: NPPSS5D9C10 | O159: Mexico Region 1 | P159: 40 | Q159: 31848 | R159: Male
M160: NPPSS5D9C10Mexico Region 141Male | N160: NPPSS5D9C10 | O160: Mexico Region 1 | P160: 41 | Q160: 32700 | R160: Male
M161: NPPSS5D9C10Mexico Region 142Male | N161: NPPSS5D9C10 | O161: Mexico Region 1 | P161: 42 | Q161: 33566 | R161: Male
M162: NPPSS5D9C10Mexico Region 143Male | N162: NPPSS5D9C10 | O162: Mexico Region 1 | P162: 43 | Q162: 34539 | R162: Male
M163: NPPSS5D9C10Mexico Region 144Male | N163: NPPSS5D9C10 | O163: Mexico Region 1 | P163: 44 | Q163: 35545 | R163: Male
M164: NPPSS5D9C10Mexico Region 145Male | N164: NPPSS5D9C10 | O164: Mexico Region 1 | P164: 45 | Q164: 36871 | R164: Male
M165: NPPSS5D9C10Mexico Region 146Male | N165: NPPSS5D9C10 | O165: Mexico Region 1 | P165: 46 | Q165: 37921 | R165: Male
M166: NPPSS5D9C10Mexico Region 147Male | N166: NPPSS5D9C10 | O166: Mexico Region 1 | P166: 47 | Q166: 39096 | R166: Male
M167: NPPSS5D9C10Mexico Region 148Male | N167: NPPSS5D9C10 | O167: Mexico Region 1 | P167: 48 | Q167: 41966 | R167: Male
M168: NPPSS5D9C10Mexico Region 149Male | N168: NPPSS5D9C10 | O168: Mexico Region 1 | P168: 49 | Q168: 43325 | R168: Male
M169: NPPSS5D9C10Mexico Region 150Male | N169: NPPSS5D9C10 | O169: Mexico Region 1 | P169: 50 | Q169: 44693 | R169: Male
M170: NPPSS5D9C10Mexico Region 151Male | N170: NPPSS5D9C10 | O170: Mexico Region 1 | P170: 51 | Q170: 47870 | R170: Male
M171: NPPSS5D9C10Mexico Region 152Male | N171: NPPSS5D9C10 | O171: Mexico Region 1 | P171: 52 | Q171: 51000 | R171: Male
M172: NPPSS5D9C10Mexico Region 153Male | N172: NPPSS5D9C10 | O172: Mexico Region 1 | P172: 53 | Q172: 53938 | R172: Male
M173: NPPSS5D9C10Mexico Region 154Male | N173: NPPSS5D9C10 | O173: Mexico Region 1 | P173: 54 | Q173: 57345 | R173: Male
M174: NPPSS5D9C10Mexico Region 155Male | N174: NPPSS5D9C10 | O174: Mexico Region 1 | P174: 55 | Q174: 61536 | R174: Male
M175: NPPSS5D9C10Mexico Region 156Male | N175: NPPSS5D9C10 | O175: Mexico Region 1 | P175: 56 | Q175: 66454 | R175: Male
M176: NPPSS5D9C10Mexico Region 157Male | N176: NPPSS5D9C10 | O176: Mexico Region 1 | P176: 57 | Q176: 69755 | R176: Male
M177: NPPSS5D9C10Mexico Region 158Male | N177: NPPSS5D9C10 | O177: Mexico Region 1 | P177: 58 | Q177: 74809 | R177: Male
M178: NPPSS5D9C10Mexico Region 159Male | N178: NPPSS5D9C10 | O178: Mexico Region 1 | P178: 59 | Q178: 80059 | R178: Male
M179: NPPSS5D9C10Mexico Region 160Male | N179: NPPSS5D9C10 | O179: Mexico Region 1 | P179: 60 | Q179: 85880 | R179: Male
M180: NPPSS5D9C10Mexico Region 161Male | N180: NPPSS5D9C10 | O180: Mexico Region 1 | P180: 61 | Q180: 92345 | R180: Male
M181: NPPSS5D9C10Mexico Region 162Male | N181: NPPSS5D9C10 | O181: Mexico Region 1 | P181: 62 | Q181: 98550 | R181: Male
M182: NPPSS5D9C10Mexico Region 163Male | N182: NPPSS5D9C10 | O182: Mexico Region 1 | P182: 63 | Q182: 107918 | R182: Male
M183: NPPSS5D9C10Mexico Region 164Male | N183: NPPSS5D9C10 | O183: Mexico Region 1 | P183: 64 | Q183: 118611 | R183: Male
M184: NPPSS5D9C10Mexico Region 165Male | N184: NPPSS5D9C10 | O184: Mexico Region 1 | P184: 65 | Q184: 130775 | R184: Male
M185: NPPSS5D9C10Mexico Region 166Male | N185: NPPSS5D9C10 | O185: Mexico Region 1 | P185: 66 | Q185: 143284 | R185: Male
M186: NPPSS5D9C10Mexico Region 167Male | N186: NPPSS5D9C10 | O186: Mexico Region 1 | P186: 67 | Q186: 155124 | R186: Male
M187: NPPSS5D9C10Mexico Region 168Male | N187: NPPSS5D9C10 | O187: Mexico Region 1 | P187: 68 | Q187: 171146 | R187: Male
M188: NPPSS5D9C10Mexico Region 169Male | N188: NPPSS5D9C10 | O188: Mexico Region 1 | P188: 69 | Q188: 187986 | R188: Male
M189: NPPSS5D9C10Mexico Region 170Male | N189: NPPSS5D9C10 | O189: Mexico Region 1 | P189: 70 | Q189: 203398 | R189: Male
M190: NPPSS5D9C10Mexico Region 171Male | N190: NPPSS5D9C10 | O190: Mexico Region 1 | P190: 71 | Q190: 216950 | R190: Male
M191: NPPSS5D9C10Mexico Region 172Male | N191: NPPSS5D9C10 | O191: Mexico Region 1 | P191: 72 | Q191: 230488 | R191: Male
M192: NPPSS5D9C10Mexico Region 173Male | N192: NPPSS5D9C10 | O192: Mexico Region 1 | P192: 73 | Q192: 246762 | R192: Male
M193: NPPSS5D9C10Mexico Region 174Male | N193: NPPSS5D9C10 | O193: Mexico Region 1 | P193: 74 | Q193: 266052 | R193: Male
M194: NPPSS5D9C10Mexico Region 175Male | N194: NPPSS5D9C10 | O194: Mexico Region 1 | P194: 75 | Q194: 282460 | R194: Male
M195: NPPSS5D9C10Mexico Region 176Male | N195: NPPSS5D9C10 | O195: Mexico Region 1 | P195: 76 | Q195: 298778 | R195: Male
M196: NPPSS5D9C10Mexico Region 177Male | N196: NPPSS5D9C10 | O196: Mexico Region 1 | P196: 77 | Q196: 314942 | R196: Male
M197: NPPSS5D9C10Mexico Region 178Male | N197: NPPSS5D9C10 | O197: Mexico Region 1 | P197: 78 | Q197: 331372 | R197: Male
M198: NPPSS5D9C10Mexico Region 179Male | N198: NPPSS5D9C10 | O198: Mexico Region 1 | P198: 79 | Q198: 347704 | R198: Male
M199: NPPSS5D9C10Mexico Region 180Male | N199: NPPSS5D9C10 | O199: Mexico Region 1 | P199: 80 | Q199: 363926 | R199: Male
M200: NPPSS5D9C10Mexico Region 181Male | N200: NPPSS5D9C10 | O200: Mexico Region 1 | P200: 81 | Q200: 379722 | R200: Male
... 4300 more rows
